Workbook

Sheet Notes
B2: Philosophy - Reverse of Sculpting
C3: Applies to MRA, negative repayment in sculpting, use of revolving debt, working capital facility
C4: Alternative is to Adjust the Capacity Charge
C6: Use cash flow adjustments to match the cash flow with the CFADS
C8: CFADS can include working capital facilities
C9: CFADS can include fees on LC for Debt Service Reserve facility
C10: CFADS can include MRA adjustments
C12: CFADS can also be defined by bank in other ways
C13: Can use cash in reserve to make up CFADS
C14: Can use Revolver draws as addition and revolver withdrawls as reduction and interest on revolver as withdrawl
C16: Compute Required CFADS
C18: 1. DSCR x Debt Service = Required CFADS
C20: 2. Deficit CFADS = Required CFADS - Actual CFADS -- Max or zero
C21: 3. Surplus CFADS = Actual CFADS - Required CFADS -- Max or zero
B23: Modelling Issues
C24: Transparency is crucial
C25: Presentation of Complex issues with graphs
C26: Layout model so you can make effective graphs
C27: Use Flags, Check boxes and drop-down boxes and change them
C29: Layout CFADS and Equity Cash Flow
C31: Review of Target IRR and NPV with Goal Seek

Sheet Forms
E4: Capacity Adder Flag | F4: Cash Reserve Flag | G4: Revolving Credit Flag
C5: Case without Adjustments | D5: 1
C6: Use Capacity Adder | D6: 2
C7: Use Cash Reserve | D7: 3
C8: Use Revolver | D8: 4
C10: =INDEX(C5:C8,D10) -> Case without Adjustments | D10: 1 | E10: =D10=2 -> FALSE | F10: =D10=D7 -> FALSE | G10: =D10=D8 -> FALSE

Sheet Model
G1: Total | J1: CCR Computed | L1: =E31 -> 61.89402025 | N1: PV of CCCR | O1: =E61 -> 951.4168068 | Q1: Equity IRR
B3: Timing | I3: 0 | J3: 1 | K3: 2 | L3: 3 | M3: 4 | N3: 5 | O3: 6 | P3: 7 | Q3: 8 | R3: 9 | S3: 10 | T3: 11 | U3: 12 | V3: 13 | W3: 14 | X3: 15 | Y3: 16 | Z3: 17 | AA3: 18 | AB3: 19 | AC3: 20 | AD3: 21 | AE3: 22 | AF3: 23 | AG3: 24 | AH3: 25 | AI3: 26 | AJ3: 27 | AK3: 28 | AL3: 29 | AM3: 30 | AN3: 31 | AO3: 32 | AP3: 33 | AQ3: 34 | AR3: 35 | AS3: 36 | AT3: 37 | AU3: 38 | AV3: 39 | AW3: 40 | AX3: 41 | AY3: 42 | AZ3: 43 | BA3: 44 | BB3: 45 | BC3: 46 | BD3: 47 | BE3: 48 | BF3: 49 | BG3: 50 | BH3: 51 | BI3: 52 | BJ3: 53 | BK3: 54 | BL3: 55 | BM3: 56 | BN3: 57 | BO3: 58 | BP3: 59 | BQ3: 60
D4: Construction | E4: 0 | I4: =(I3=$E$4)*1 -> 1 | J4: =(J3=$E$4)*1 -> 0 | K4: 0 | L4: 0 | M4: 0 | N4: 0 | O4: 0 | P4: 0 | Q4: 0 | R4: 0 | S4: 0 | T4: 0 | U4: 0 | V4: 0 | W4: 0 | X4: 0 | Y4: 0 | Z4: 0 | AA4: 0 | AB4: 0 | AC4: 0 | AD4: 0 | AE4: 0 | AF4: 0 | AG4: 0 | AH4: 0 | AI4: 0 | AJ4: 0 | AK4: 0 | AL4: 0 | AM4: 0 | AN4: 0 | AO4: 0 | AP4: 0 | AQ4: 0 | AR4: 0 | AS4: 0 | AT4: 0 | AU4: 0 | AV4: 0 | AW4: 0 | AX4: 0 | AY4: 0 | AZ4: 0 | BA4: 0 | BB4: 0 | BC4: 0 | BD4: 0 | BE4: 0 | BF4: 0 | BG4: 0 | BH4: 0 | BI4: 0 | BJ4: 0 | BK4: 0 | BL4: 0 | BM4: 0 | BN4: 0 | BO4: 0 | BP4: 0 | BQ4: 0
D5: Operations | E5: 35 | I5: =(AND(NOT(I4),I3<=$E$5))*1 -> 0 | J5: =(AND(NOT(J4),J3<=$E$5))*1 -> 1 | K5: 1 | L5: 1 | M5: 1 | N5: 1 | O5: 1 | P5: 1 | Q5: 1 | R5: 1 | S5: 1 | T5: 1 | U5: 1 | V5: 1 | W5: 1 | X5: 1 | Y5: 1 | Z5: 1 | AA5: 1 | AB5: 1 | AC5: 1 | AD5: 1 | AE5: 1 | AF5: 1 | AG5: 1 | AH5: 1 | AI5: 1 | AJ5: 1 | AK5: 1 | AL5: 1 | AM5: 1 | AN5: 1 | AO5: 1 | AP5: 1 | AQ5: 1 | AR5: 1 | AS5: 0 | AT5: 0 | AU5: 0 | AV5: 0 | AW5: 0 | AX5: 0 | AY5: 0 | AZ5: 0 | BA5: 0 | BB5: 0 | BC5: 0 | BD5: 0 | BE5: 0 | BF5: 0 | BG5: 0 | BH5: 0 | BI5: 0 | BJ5: 0 | BK5: 0 | BL5: 0 | BM5: 0 | BN5: 0 | BO5: 0 | BP5: 0 | BQ5: 0
B7: Operations
C8: Capital Expenditures | E8: 1000 | I8: =$E$8*I4 -> 1000 | J8: 0 | K8: 0 | L8: 0 | M8: 0 | N8: 0 | O8: 0 | P8: 0 | Q8: 0 | R8: 0 | S8: 0 | T8: 0 | U8: 0 | V8: 0 | W8: 0 | X8: 0 | Y8: 0 | Z8: 0 | AA8: 0 | AB8: 0 | AC8: 0 | AD8: 0 | AE8: 0 | AF8: 0 | AG8: 0 | AH8: 0 | AI8: 0 | AJ8: 0 | AK8: 0 | AL8: 0 | AM8: 0 | AN8: 0 | AO8: =$E$8*AO4 -> 0 | AP8: 0 | AQ8: 0 | AR8: 0 | AS8: 0 | AT8: 0 | AU8: 0 | AV8: 0 | AW8: 0 | AX8: 0 | AY8: 0 | AZ8: 0 | BA8: 0 | BB8: 0 | BC8: 0 | BD8: 0 | BE8: 0 | BF8: 0 | BG8: 0 | BH8: 0 | BI8: 0 | BJ8: 0 | BK8: 0 | BL8: 0 | BM8: 0 | BN8: 0 | BO8: 0 | BP8: 0 | BQ8: 0
C9: Target Equity IRR | E9: 0.08
B11: Debt Financing - No Sculpting
C12: Minimum DSCR | E12: 1.2
C13: Debt Percent | E13: 0.8 | H13: =SUM(I13:XFD13) -> 800 | I13: =$E$13*I8*I4 -> 800 | J13: 0 | K13: 0 | L13: 0 | M13: 0 | N13: 0 | O13: 0 | P13: 0 | Q13: 0 | R13: 0 | S13: 0 | T13: 0 | U13: 0 | V13: 0 | W13: 0 | X13: 0 | Y13: 0 | Z13: 0 | AA13: 0 | AB13: 0 | AC13: 0 | AD13: 0 | AE13: 0 | AF13: 0 | AG13: 0 | AH13: 0 | AI13: 0 | AJ13: 0 | AK13: 0 | AL13: 0 | AM13: 0 | AN13: 0 | AO13: =$E$13*AO8*AO4 -> 0 | AP13: 0 | AQ13: 0 | AR13: 0 | AS13: 0 | AT13: 0 | AU13: 0 | AV13: 0 | AW13: 0 | AX13: 0 | AY13: 0 | AZ13: 0 | BA13: 0 | BB13: 0 | BC13: 0 | BD13: 0 | BE13: 0 | BF13: 0 | BG13: 0 | BH13: 0 | BI13: 0 | BJ13: 0 | BK13: 0 | BL13: 0 | BM13: 0 | BN13: 0 | BO13: 0 | BP13: 0 | BQ13: 0
C14: Debt Tenure | E14: 20 | I14: =(AND(I5,I3<=$E$14))*1 -> 0 | J14: 1 | K14: 1 | L14: 1 | M14: 1 | N14: 1 | O14: 1 | P14: 1 | Q14: 1 | R14: 1 | S14: 1 | T14: 1 | U14: 1 | V14: 1 | W14: 1 | X14: 1 | Y14: 1 | Z14: 1 | AA14: 1 | AB14: 1 | AC14: 1 | AD14: 0 | AE14: 0 | AF14: 0 | AG14: 0 | AH14: 0 | AI14: 0 | AJ14: 0 | AK14: 0 | AL14: 0 | AM14: 0 | AN14: 0 | AO14: =(AND(AO5,AO3<=$E$14))*1 -> 0 | AP14: 0 | AQ14: 0 | AR14: 0 | AS14: 0 | AT14: 0 | AU14: 0 | AV14: 0 | AW14: 0 | AX14: 0 | AY14: 0 | AZ14: 0 | BA14: 0 | BB14: 0 | BC14: 0 | BD14: 0 | BE14: 0 | BF14: 0 | BG14: 0 | BH14: 0 | BI14: 0 | BJ14: 0 | BK14: 0 | BL14: 0 | BM14: 0 | BN14: 0 | BO14: 0 | BP14: 0 | BQ14: 0
C15: Intrest Rate | E15: 0.055
C17: Flat Debt Service (Flat Repayment) | E17: FALSE | F17: =H13 -> 800 | G17: =PMT(E15,E14,-F17) -> 66.94346403 | I17: =$G$17*I14 -> 0 | J17: =$G$17*J14 -> 66.94346403 | K17: 66.94346403 | L17: 66.94346403 | M17: 66.94346403 | N17: 66.94346403 | O17: 66.94346403 | P17: 66.94346403 | Q17: 66.94346403 | R17: 66.94346403 | S17: 66.94346403 | T17: 66.94346403 | U17: 66.94346403 | V17: 66.94346403 | W17: 66.94346403 | X17: 66.94346403 | Y17: 66.94346403 | Z17: 66.94346403 | AA17: 66.94346403 | AB17: 66.94346403 | AC17: 66.94346403 | AD17: 0 | AE17: 0 | AF17: 0 | AG17: 0 | AH17: 0 | AI17: 0 | AJ17: 0 | AK17: 0 | AL17: 0 | AM17: 0 | AN17: 0 | AO17: 0 | AP17: 0 | AQ17: 0 | AR17: 0 | AS17: 0 | AT17: 0 | AU17: 0 | AV17: 0 | AW17: 0 | AX17: 0 | AY17: 0 | AZ17: 0 | BA17: 0 | BB17: 0 | BC17: 0 | BD17: 0 | BE17: 0 | BF17: 0 | BG17: 0 | BH17: 0 | BI17: 0 | BJ17: 0 | BK17: 0 | BL17: 0 | BM17: 0 | BN17: 0 | BO17: 0 | BP17: 0 | BQ17: 0
C18: Repayment | E18: =E17 -> FALSE | F18: =H13 -> 800 | G18: =F18/E14 -> 40 | I18: =$G$18*I14 -> 0 | J18: =$G$18*J14 -> 40 | K18: 40 | L18: 40 | M18: 40 | N18: 40 | O18: 40 | P18: 40 | Q18: 40 | R18: 40 | S18: 40 | T18: 40 | U18: 40 | V18: 40 | W18: 40 | X18: 40 | Y18: 40 | Z18: 40 | AA18: 40 | AB18: 40 | AC18: 40 | AD18: 0 | AE18: 0 | AF18: 0 | AG18: 0 | AH18: 0 | AI18: 0 | AJ18: 0 | AK18: 0 | AL18: 0 | AM18: 0 | AN18: 0 | AO18: 0 | AP18: 0 | AQ18: 0 | AR18: 0 | AS18: 0 | AT18: 0 | AU18: 0 | AV18: 0 | AW18: 0 | AX18: 0 | AY18: 0 | AZ18: 0 | BA18: 0 | BB18: 0 | BC18: 0 | BD18: 0 | BE18: 0 | BF18: 0 | BG18: 0 | BH18: 0 | BI18: 0 | BJ18: 0 | BK18: 0 | BL18: 0 | BM18: 0 | BN18: 0 | BO18: 0 | BP18: 0 | BQ18: 0
C19: Repayment Applied | E19: =E18 -> FALSE
C21: Debt Balance
D22: Opening Balance | I22: =H25 -> 0 | J22: =I25 -> 800 | K22: 760 | L22: 720 | M22: 680 | N22: 640 | O22: 600 | P22: 560 | Q22: 520 | R22: 480 | S22: 440 | T22: 400 | U22: 360 | V22: 320 | W22: 280 | X22: 240 | Y22: 200 | Z22: 160 | AA22: 120 | AB22: 80 | AC22: 40 | AD22: 0 | AE22: 0 | AF22: 0 | AG22: 0 | AH22: 0 | AI22: 0 | AJ22: 0 | AK22: 0 | AL22: 0 | AM22: 0 | AN22: 0 | AO22: 0 | AP22: 0 | AQ22: 0 | AR22: 0 | AS22: 0 | AT22: 0 | AU22: 0 | AV22: 0 | AW22: 0 | AX22: 0 | AY22: 0 | AZ22: 0 | BA22: 0 | BB22: 0 | BC22: 0 | BD22: 0 | BE22: 0 | BF22: 0 | BG22: 0 | BH22: 0 | BI22: 0 | BJ22: 0 | BK22: 0 | BL22: 0 | BM22: 0 | BN22: 0 | BO22: 0 | BP22: 0 | BQ22: 0
D23: Add: Draws | G23: =SUM(I23:XFD23) -> 800 | I23: =I13 -> 800 | J23: =J13 -> 0 | K23: 0 | L23: 0 | M23: 0 | N23: 0 | O23: 0 | P23: 0 | Q23: 0 | R23: 0 | S23: 0 | T23: 0 | U23: 0 | V23: 0 | W23: 0 | X23: 0 | Y23: 0 | Z23: 0 | AA23: 0 | AB23: 0 | AC23: 0 | AD23: 0 | AE23: 0 | AF23: 0 | AG23: 0 | AH23: 0 | AI23: 0 | AJ23: 0 | AK23: 0 | AL23: 0 | AM23: 0 | AN23: 0 | AO23: 0 | AP23: 0 | AQ23: 0 | AR23: 0 | AS23: 0 | AT23: 0 | AU23: 0 | AV23: 0 | AW23: 0 | AX23: 0 | AY23: 0 | AZ23: 0 | BA23: 0 | BB23: 0 | BC23: 0 | BD23: 0 | BE23: 0 | BF23: 0 | BG23: 0 | BH23: 0 | BI23: 0 | BJ23: 0 | BK23: 0 | BL23: 0 | BM23: 0 | BN23: 0 | BO23: 0 | BP23: 0 | BQ23: 0
D24: Less Repayment | G24: =SUM(I24:XFD24) -> 800 | I24: =I18 -> 0 | J24: =J18 -> 40 | K24: 40 | L24: 40 | M24: 40 | N24: 40 | O24: 40 | P24: 40 | Q24: 40 | R24: 40 | S24: 40 | T24: 40 | U24: 40 | V24: 40 | W24: 40 | X24: 40 | Y24: 40 | Z24: 40 | AA24: 40 | AB24: 40 | AC24: 40 | AD24: 0 | AE24: 0 | AF24: 0 | AG24: 0 | AH24: 0 | AI24: 0 | AJ24: 0 | AK24: 0 | AL24: 0 | AM24: 0 | AN24: 0 | AO24: 0 | AP24: 0 | AQ24: 0 | AR24: 0 | AS24: 0 | AT24: 0 | AU24: 0 | AV24: 0 | AW24: 0 | AX24: 0 | AY24: 0 | AZ24: 0 | BA24: 0 | BB24: 0 | BC24: 0 | BD24: 0 | BE24: 0 | BF24: 0 | BG24: 0 | BH24: 0 | BI24: 0 | BJ24: 0 | BK24: 0 | BL24: 0 | BM24: 0 | BN24: 0 | BO24: 0 | BP24: 0 | BQ24: 0
D25: Closing Balance | I25: =I22+I23-I24 -> 800 | J25: =J22+J23-J24 -> 760 | K25: 720 | L25: 680 | M25: 640 | N25: 600 | O25: 560 | P25: 520 | Q25: 480 | R25: 440 | S25: 400 | T25: 360 | U25: 320 | V25: 280 | W25: 240 | X25: 200 | Y25: 160 | Z25: 120 | AA25: 80 | AB25: 40 | AC25: 0 | AD25: 0 | AE25: 0 | AF25: 0 | AG25: 0 | AH25: 0 | AI25: 0 | AJ25: 0 | AK25: 0 | AL25: 0 | AM25: 0 | AN25: 0 | AO25: 0 | AP25: 0 | AQ25: 0 | AR25: 0 | AS25: 0 | AT25: 0 | AU25: 0 | AV25: 0 | AW25: 0 | AX25: 0 | AY25: 0 | AZ25: 0 | BA25: 0 | BB25: 0 | BC25: 0 | BD25: 0 | BE25: 0 | BF25: 0 | BG25: 0 | BH25: 0 | BI25: 0 | BJ25: 0 | BK25: 0 | BL25: 0 | BM25: 0 | BN25: 0 | BO25: 0 | BP25: 0 | BQ25: 0
D26: Interest | E26: =E15 -> 0.055 | I26: =I22*$E$26 -> 0 | J26: =J22*$E$26 -> 44 | K26: 41.8 | L26: 39.6 | M26: 37.4 | N26: 35.2 | O26: 33 | P26: 30.8 | Q26: 28.6 | R26: 26.4 | S26: 24.2 | T26: 22 | U26: 19.8 | V26: 17.6 | W26: 15.4 | X26: 13.2 | Y26: 11 | Z26: 8.8 | AA26: 6.6 | AB26: 4.4 | AC26: 2.2 | AD26: 0 | AE26: 0 | AF26: 0 | AG26: 0 | AH26: 0 | AI26: 0 | AJ26: 0 | AK26: 0 | AL26: 0 | AM26: 0 | AN26: 0 | AO26: 0 | AP26: 0 | AQ26: 0 | AR26: 0 | AS26: 0 | AT26: 0 | AU26: 0 | AV26: 0 | AW26: 0 | AX26: 0 | AY26: 0 | AZ26: 0 | BA26: 0 | BB26: 0 | BC26: 0 | BD26: 0 | BE26: 0 | BF26: 0 | BG26: 0 | BH26: 0 | BI26: 0 | BJ26: 0 | BK26: 0 | BL26: 0 | BM26: 0 | BN26: 0 | BO26: 0 | BP26: 0 | BQ26: 0
D28: Total Debt Service | G28: =SUM(I28:XFD28) -> 1262 | I28: =I26+I24 -> 0 | J28: =J26+J24 -> 84 | K28: 81.8 | L28: 79.6 | M28: 77.4 | N28: 75.2 | O28: 73 | P28: 70.8 | Q28: 68.6 | R28: 66.4 | S28: 64.2 | T28: 62 | U28: 59.8 | V28: 57.6 | W28: 55.4 | X28: 53.2 | Y28: 51 | Z28: 48.8 | AA28: 46.6 | AB28: 44.4 | AC28: 42.2 | AD28: 0 | AE28: 0 | AF28: 0 | AG28: 0 | AH28: 0 | AI28: 0 | AJ28: 0 | AK28: 0 | AL28: 0 | AM28: 0 | AN28: 0 | AO28: 0 | AP28: 0 | AQ28: 0 | AR28: 0 | AS28: 0 | AT28: 0 | AU28: 0 | AV28: 0 | AW28: 0 | AX28: 0 | AY28: 0 | AZ28: 0 | BA28: 0 | BB28: 0 | BC28: 0 | BD28: 0 | BE28: 0 | BF28: 0 | BG28: 0 | BH28: 0 | BI28: 0 | BJ28: 0 | BK28: 0 | BL28: 0 | BM28: 0 | BN28: 0 | BO28: 0 | BP28: 0 | BQ28: 0
B30: Deficit and Surplus CFADS
C31: Base Flat Capacity Payment | E31: =ccr -> 61.89402025 | I31: =$E$31*I5 -> 0 | J31: =$E$31*J5 -> 61.89402025 | K31: 61.89402025 | L31: 61.89402025 | M31: 61.89402025 | N31: 61.89402025 | O31: 61.89402025 | P31: 61.89402025 | Q31: 61.89402025 | R31: 61.89402025 | S31: 61.89402025 | T31: 61.89402025 | U31: 61.89402025 | V31: 61.89402025 | W31: 61.89402025 | X31: 61.89402025 | Y31: 61.89402025 | Z31: 61.89402025 | AA31: 61.89402025 | AB31: 61.89402025 | AC31: 61.89402025 | AD31: 61.89402025 | AE31: 61.89402025 | AF31: 61.89402025 | AG31: 61.89402025 | AH31: 61.89402025 | AI31: 61.89402025 | AJ31: 61.89402025 | AK31: 61.89402025 | AL31: 61.89402025 | AM31: 61.89402025 | AN31: 61.89402025 | AO31: 61.89402025 | AP31: 61.89402025 | AQ31: 61.89402025 | AR31: 61.89402025 | AS31: 0 | AT31: 0 | AU31: 0 | AV31: 0 | AW31: 0 | AX31: 0 | AY31: 0 | AZ31: 0 | BA31: 0 | BB31: 0 | BC31: 0 | BD31: 0 | BE31: 0 | BF31: 0 | BG31: 0 | BH31: 0 | BI31: 0 | BJ31: 0 | BK31: 0 | BL31: 0 | BM31: 0 | BN31: 0 | BO31: 0 | BP31: 0 | BQ31: 0
C33: 1. Required CFADS | E33: =E12 -> 1.2 | I33: =I28*$E$33 -> 0 | J33: 100.8 | K33: 98.16 | L33: 95.52 | M33: 92.88 | N33: 90.24 | O33: 87.6 | P33: 84.96 | Q33: 82.32 | R33: 79.68 | S33: 77.04 | T33: 74.4 | U33: 71.76 | V33: 69.12 | W33: 66.48 | X33: 63.84 | Y33: 61.2 | Z33: 58.56 | AA33: 55.92 | AB33: 53.28 | AC33: 50.64 | AD33: 0 | AE33: 0 | AF33: 0 | AG33: 0 | AH33: 0 | AI33: 0 | AJ33: 0 | AK33: 0 | AL33: 0 | AM33: 0 | AN33: 0 | AO33: =AO28*$E$33 -> 0 | AP33: 0 | AQ33: 0 | AR33: 0 | AS33: 0 | AT33: 0 | AU33: 0 | AV33: 0 | AW33: 0 | AX33: 0 | AY33: 0 | AZ33: 0 | BA33: 0 | BB33: 0 | BC33: 0 | BD33: 0 | BE33: 0 | BF33: 0 | BG33: 0 | BH33: 0 | BI33: 0 | BJ33: 0 | BK33: 0 | BL33: 0 | BM33: 0 | BN33: 0 | BO33: 0 | BP33: 0 | BQ33: 0
C34: 2. Difference Required CFADS - CFADS from Capacity Payment | J34: =J33-J31 -> 38.90597975 | K34: 36.26597975 | L34: 33.62597975 | M34: 30.98597975 | N34: 28.34597975 | O34: 25.70597975 | P34: 23.06597975 | Q34: 20.42597975 | R34: 17.78597975 | S34: 15.14597975 | T34: 12.50597975 | U34: 9.865979752 | V34: 7.225979752 | W34: 4.585979752 | X34: 1.945979752 | Y34: -0.6940202482 | Z34: -3.334020248 | AA34: -5.974020248 | AB34: -8.614020248 | AC34: -11.25402025 | AD34: -61.89402025 | AE34: -61.89402025 | AF34: -61.89402025 | AG34: -61.89402025 | AH34: -61.89402025 | AI34: -61.89402025 | AJ34: -61.89402025 | AK34: -61.89402025 | AL34: -61.89402025 | AM34: -61.89402025 | AN34: -61.89402025 | AO34: -61.89402025 | AP34: =AP33-AP31 -> -61.89402025 | AQ34: -61.89402025 | AR34: -61.89402025 | AS34: 0 | AT34: 0 | AU34: 0 | AV34: 0 | AW34: 0 | AX34: 0 | AY34: 0 | AZ34: 0 | BA34: 0 | BB34: 0 | BC34: 0 | BD34: 0 | BE34: 0 | BF34: 0 | BG34: 0 | BH34: 0 | BI34: 0 | BJ34: 0 | BK34: 0 | BL34: 0 | BM34: 0 | BN34: 0 | BO34: 0 | BP34: 0 | BQ34: 0
C35: 3. Deficit CFADS to Meet Debt Service | J35: =MAX(J34,0) -> 38.90597975 | K35: =MAX(K34,0) -> 36.26597975 | L35: 33.62597975 | M35: 30.98597975 | N35: 28.34597975 | O35: 25.70597975 | P35: 23.06597975 | Q35: 20.42597975 | R35: 17.78597975 | S35: 15.14597975 | T35: 12.50597975 | U35: 9.865979752 | V35: 7.225979752 | W35: 4.585979752 | X35: 1.945979752 | Y35: 0 | Z35: 0 | AA35: 0 | AB35: 0 | AC35: 0 | AD35: 0 | AE35: 0 | AF35: 0 | AG35: 0 | AH35: 0 | AI35: 0 | AJ35: 0 | AK35: 0 | AL35: 0 | AM35: 0 | AN35: 0 | AO35: 0 | AP35: 0 | AQ35: 0 | AR35: 0 | AS35: 0 | AT35: 0 | AU35: 0 | AV35: 0 | AW35: 0 | AX35: 0 | AY35: 0 | AZ35: 0 | BA35: 0 | BB35: 0 | BC35: 0 | BD35: 0 | BE35: 0 | BF35: 0 | BG35: 0 | BH35: 0 | BI35: 0 | BJ35: 0 | BK35: 0 | BL35: 0 | BM35: 0 | BN35: 0 | BO35: 0 | BP35: 0 | BQ35: 0
C36: 4. Surplus CFADS for Repayment of Debt | J36: =MAX(-J34,0) -> 0 | K36: =MAX(-K34,0) -> 0 | L36: 0 | M36: 0 | N36: 0 | O36: 0 | P36: 0 | Q36: 0 | R36: 0 | S36: 0 | T36: 0 | U36: 0 | V36: 0 | W36: 0 | X36: 0 | Y36: 0.6940202482 | Z36: 3.334020248 | AA36: 5.974020248 | AB36: 8.614020248 | AC36: 11.25402025 | AD36: 61.89402025 | AE36: 61.89402025 | AF36: 61.89402025 | AG36: 61.89402025 | AH36: 61.89402025 | AI36: 61.89402025 | AJ36: 61.89402025 | AK36: 61.89402025 | AL36: 61.89402025 | AM36: 61.89402025 | AN36: 61.89402025 | AO36: 61.89402025 | AP36: 61.89402025 | AQ36: 61.89402025 | AR36: 61.89402025 | AS36: 0 | AT36: 0 | AU36: 0 | AV36: 0 | AW36: 0 | AX36: 0 | AY36: 0 | AZ36: 0 | BA36: 0 | BB36: 0 | BC36: 0 | BD36: 0 | BE36: 0 | BF36: 0 | BG36: 0 | BH36: 0 | BI36: 0 | BJ36: 0 | BK36: 0 | BL36: 0 | BM36: 0 | BN36: 0 | BO36: 0 | BP36: 0 | BQ36: 0
B38: Option 1: Capacity Charge Adjustment to Increase for Deficit Debt Service
C39: Base Capacity Charge | I39: =I31 -> 0 | J39: =J31 -> 61.89402025 | K39: =K31 -> 61.89402025 | L39: 61.89402025 | M39: 61.89402025 | N39: 61.89402025 | O39: 61.89402025 | P39: 61.89402025 | Q39: 61.89402025 | R39: 61.89402025 | S39: 61.89402025 | T39: 61.89402025 | U39: 61.89402025 | V39: 61.89402025 | W39: 61.89402025 | X39: 61.89402025 | Y39: 61.89402025 | Z39: 61.89402025 | AA39: 61.89402025 | AB39: 61.89402025 | AC39: 61.89402025 | AD39: 61.89402025 | AE39: 61.89402025 | AF39: 61.89402025 | AG39: 61.89402025 | AH39: 61.89402025 | AI39: 61.89402025 | AJ39: 61.89402025 | AK39: 61.89402025 | AL39: 61.89402025 | AM39: 61.89402025 | AN39: 61.89402025 | AO39: 61.89402025 | AP39: 61.89402025 | AQ39: 61.89402025 | AR39: 61.89402025 | AS39: 0 | AT39: 0 | AU39: 0 | AV39: 0 | AW39: 0 | AX39: 0 | AY39: 0 | AZ39: 0 | BA39: 0 | BB39: 0 | BC39: 0 | BD39: 0 | BE39: 0 | BF39: 0 | BG39: 0 | BH39: 0 | BI39: 0 | BJ39: 0 | BK39: 0 | BL39: 0 | BM39: 0 | BN39: 0 | BO39: 0 | BP39: 0 | BQ39: 0
C40: Debt Service Adder | E40: =Forms!E10 -> FALSE | I40: =I35*$E$40 -> 0 | J40: =J35*$E$40 -> 0 | K40: 0 | L40: 0 | M40: 0 | N40: 0 | O40: 0 | P40: 0 | Q40: 0 | R40: 0 | S40: 0 | T40: 0 | U40: 0 | V40: 0 | W40: 0 | X40: 0 | Y40: 0 | Z40: 0 | AA40: 0 | AB40: 0 | AC40: 0 | AD40: 0 | AE40: 0 | AF40: 0 | AG40: 0 | AH40: 0 | AI40: 0 | AJ40: 0 | AK40: 0 | AL40: 0 | AM40: 0 | AN40: 0 | AO40: =AO35*$E$40 -> 0 | AP40: 0 | AQ40: 0 | AR40: 0 | AS40: 0 | AT40: 0 | AU40: 0 | AV40: 0 | AW40: 0 | AX40: 0 | AY40: 0 | AZ40: 0 | BA40: 0 | BB40: 0 | BC40: 0 | BD40: 0 | BE40: 0 | BF40: 0 | BG40: 0 | BH40: 0 | BI40: 0 | BJ40: 0 | BK40: 0 | BL40: 0 | BM40: 0 | BN40: 0 | BO40: 0 | BP40: 0 | BQ40: 0
C41: Total Capacity Charge with Debt Service Adder | I41: =I39+I40 -> 0 | J41: =J39+J40 -> 61.89402025 | K41: 61.89402025 | L41: 61.89402025 | M41: 61.89402025 | N41: 61.89402025 | O41: 61.89402025 | P41: 61.89402025 | Q41: 61.89402025 | R41: 61.89402025 | S41: 61.89402025 | T41: 61.89402025 | U41: 61.89402025 | V41: 61.89402025 | W41: 61.89402025 | X41: 61.89402025 | Y41: 61.89402025 | Z41: 61.89402025 | AA41: 61.89402025 | AB41: 61.89402025 | AC41: 61.89402025 | AD41: 61.89402025 | AE41: 61.89402025 | AF41: 61.89402025 | AG41: 61.89402025 | AH41: 61.89402025 | AI41: 61.89402025 | AJ41: 61.89402025 | AK41: 61.89402025 | AL41: 61.89402025 | AM41: 61.89402025 | AN41: 61.89402025 | AO41: 61.89402025 | AP41: 61.89402025 | AQ41: 61.89402025 | AR41: 61.89402025 | AS41: 0 | AT41: 0 | AU41: 0 | AV41: 0 | AW41: 0 | AX41: 0 | AY41: 0 | AZ41: 0 | BA41: 0 | BB41: 0 | BC41: 0 | BD41: 0 | BE41: 0 | BF41: 0 | BG41: 0 | BH41: 0 | BI41: 0 | BJ41: 0 | BK41: 0 | BL41: 0 | BM41: 0 | BN41: 0 | BO41: 0 | BP41: 0 | BQ41: 0
C43: Starting Equity Cash Flow
D44: Capactiy Payment with Adder | I44: =I41 -> 0 | J44: =J41 -> 61.89402025 | K44: 61.89402025 | L44: 61.89402025 | M44: 61.89402025 | N44: 61.89402025 | O44: 61.89402025 | P44: 61.89402025 | Q44: 61.89402025 | R44: 61.89402025 | S44: 61.89402025 | T44: 61.89402025 | U44: 61.89402025 | V44: 61.89402025 | W44: 61.89402025 | X44: 61.89402025 | Y44: 61.89402025 | Z44: 61.89402025 | AA44: 61.89402025 | AB44: 61.89402025 | AC44: 61.89402025 | AD44: 61.89402025 | AE44: 61.89402025 | AF44: 61.89402025 | AG44: 61.89402025 | AH44: 61.89402025 | AI44: 61.89402025 | AJ44: 61.89402025 | AK44: 61.89402025 | AL44: 61.89402025 | AM44: 61.89402025 | AN44: 61.89402025 | AO44: 61.89402025 | AP44: 61.89402025 | AQ44: 61.89402025 | AR44: 61.89402025 | AS44: 0 | AT44: 0 | AU44: 0 | AV44: 0 | AW44: 0 | AX44: 0 | AY44: 0 | AZ44: 0 | BA44: 0 | BB44: 0 | BC44: 0 | BD44: 0 | BE44: 0 | BF44: 0 | BG44: 0 | BH44: 0 | BI44: 0 | BJ44: 0 | BK44: 0 | BL44: 0 | BM44: 0 | BN44: 0 | BO44: 0 | BP44: 0 | BQ44: 0
D45: Less: Debt Service | I45: =I28 -> 0 | J45: 84 | K45: 81.8 | L45: 79.6 | M45: 77.4 | N45: 75.2 | O45: 73 | P45: 70.8 | Q45: 68.6 | R45: 66.4 | S45: 64.2 | T45: 62 | U45: 59.8 | V45: 57.6 | W45: 55.4 | X45: 53.2 | Y45: 51 | Z45: 48.8 | AA45: 46.6 | AB45: 44.4 | AC45: 42.2 | AD45: 0 | AE45: 0 | AF45: 0 | AG45: 0 | AH45: 0 | AI45: 0 | AJ45: 0 | AK45: 0 | AL45: 0 | AM45: 0 | AN45: 0 | AO45: =AO28 -> 0 | AP45: 0 | AQ45: 0 | AR45: 0 | AS45: 0 | AT45: 0 | AU45: 0 | AV45: 0 | AW45: 0 | AX45: 0 | AY45: 0 | AZ45: 0 | BA45: 0 | BB45: 0 | BC45: 0 | BD45: 0 | BE45: 0 | BF45: 0 | BG45: 0 | BH45: 0 | BI45: 0 | BJ45: 0 | BK45: 0 | BL45: 0 | BM45: 0 | BN45: 0 | BO45: 0 | BP45: 0 | BQ45: 0
D46: Dividends | I46: =I41-I45 -> 0 | J46: =J41-J45 -> -22.10597975 | K46: -19.90597975 | L46: -17.70597975 | M46: -15.50597975 | N46: -13.30597975 | O46: -11.10597975 | P46: -8.905979752 | Q46: -6.705979752 | R46: -4.505979752 | S46: -2.305979752 | T46: -0.1059797518 | U46: 2.094020248 | V46: 4.294020248 | W46: 6.494020248 | X46: 8.694020248 | Y46: 10.89402025 | Z46: 13.09402025 | AA46: 15.29402025 | AB46: 17.49402025 | AC46: 19.69402025 | AD46: 61.89402025 | AE46: 61.89402025 | AF46: 61.89402025 | AG46: 61.89402025 | AH46: 61.89402025 | AI46: 61.89402025 | AJ46: 61.89402025 | AK46: 61.89402025 | AL46: 61.89402025 | AM46: 61.89402025 | AN46: 61.89402025 | AO46: 61.89402025 | AP46: 61.89402025 | AQ46: 61.89402025 | AR46: 61.89402025 | AS46: 0 | AT46: 0 | AU46: 0 | AV46: 0 | AW46: 0 | AX46: 0 | AY46: 0 | AZ46: 0 | BA46: 0 | BB46: 0 | BC46: 0 | BD46: 0 | BE46: 0 | BF46: 0 | BG46: 0 | BH46: 0 | BI46: 0 | BJ46: 0 | BK46: 0 | BL46: 0 | BM46: 0 | BN46: 0 | BO46: 0 | BP46: 0 | BQ46: 0
D47: Equity Investment | I47: =I23-I8 -> -200 | J47: 0 | K47: 0 | L47: 0 | M47: 0 | N47: 0 | O47: 0 | P47: 0 | Q47: 0 | R47: 0 | S47: 0 | T47: 0 | U47: 0 | V47: 0 | W47: 0 | X47: 0 | Y47: 0 | Z47: 0 | AA47: 0 | AB47: 0 | AC47: 0 | AD47: 0 | AE47: 0 | AF47: 0 | AG47: 0 | AH47: 0 | AI47: 0 | AJ47: 0 | AK47: 0 | AL47: 0 | AM47: 0 | AN47: 0 | AO47: =AO23-AO8 -> 0 | AP47: 0 | AQ47: 0 | AR47: 0 | AS47: 0 | AT47: 0 | AU47: 0 | AV47: 0 | AW47: 0 | AX47: 0 | AY47: 0 | AZ47: 0 | BA47: 0 | BB47: 0 | BC47: 0 | BD47: 0 | BE47: 0 | BF47: 0 | BG47: 0 | BH47: 0 | BI47: 0 | BJ47: 0 | BK47: 0 | BL47: 0 | BM47: 0 | BN47: 0 | BO47: 0 | BP47: 0 | BQ47: 0
D49: Equity Cash Flow | I49: =I47+I46 -> -200 | J49: =J47+J46 -> -22.10597975 | K49: -19.90597975 | L49: -17.70597975 | M49: -15.50597975 | N49: -13.30597975 | O49: -11.10597975 | P49: -8.905979752 | Q49: -6.705979752 | R49: -4.505979752 | S49: -2.305979752 | T49: -0.1059797518 | U49: 2.094020248 | V49: 4.294020248 | W49: 6.494020248 | X49: 8.694020248 | Y49: 10.89402025 | Z49: 13.09402025 | AA49: 15.29402025 | AB49: 17.49402025 | AC49: 19.69402025 | AD49: 61.89402025 | AE49: 61.89402025 | AF49: 61.89402025 | AG49: 61.89402025 | AH49: 61.89402025 | AI49: 61.89402025 | AJ49: 61.89402025 | AK49: 61.89402025 | AL49: 61.89402025 | AM49: 61.89402025 | AN49: 61.89402025 | AO49: 61.89402025 | AP49: 61.89402025 | AQ49: 61.89402025 | AR49: 61.89402025 | AS49: 0 | AT49: 0 | AU49: 0 | AV49: 0 | AW49: 0 | AX49: 0 | AY49: 0 | AZ49: 0 | BA49: 0 | BB49: 0 | BC49: 0 | BD49: 0 | BE49: 0 | BF49: 0 | BG49: 0 | BH49: 0 | BI49: 0 | BJ49: 0 | BK49: 0 | BL49: 0 | BM49: 0 | BN49: 0 | BO49: 0 | BP49: 0 | BQ49: 0
D50: Equity IRR | E50: =IRR(I49:BQ49) -> 0.04754810458
D51: NPV at Target IRR | E51: =E9 -> 0.08 | F51: =NPV(E51,I49:BQ49) -> -140.1655198 | G51: npv
D52: CCR from Goal Seek | E52: 74.88281216 | F52: ccr
C54: Project IRR
D55: Cash Flow from Capacity Charge | I55: =I41 -> 0 | J55: =J41 -> 61.89402025 | K55: 61.89402025 | L55: 61.89402025 | M55: 61.89402025 | N55: 61.89402025 | O55: 61.89402025 | P55: 61.89402025 | Q55: 61.89402025 | R55: 61.89402025 | S55: 61.89402025 | T55: 61.89402025 | U55: 61.89402025 | V55: 61.89402025 | W55: 61.89402025 | X55: 61.89402025 | Y55: 61.89402025 | Z55: 61.89402025 | AA55: 61.89402025 | AB55: 61.89402025 | AC55: 61.89402025 | AD55: 61.89402025 | AE55: 61.89402025 | AF55: 61.89402025 | AG55: 61.89402025 | AH55: 61.89402025 | AI55: 61.89402025 | AJ55: 61.89402025 | AK55: 61.89402025 | AL55: 61.89402025 | AM55: 61.89402025 | AN55: 61.89402025 | AO55: 61.89402025 | AP55: 61.89402025 | AQ55: 61.89402025 | AR55: 61.89402025 | AS55: 0 | AT55: 0 | AU55: 0 | AV55: 0 | AW55: 0 | AX55: 0 | AY55: 0 | AZ55: 0 | BA55: 0 | BB55: 0 | BC55: 0 | BD55: 0 | BE55: 0 | BF55: 0 | BG55: 0 | BH55: 0 | BI55: 0 | BJ55: 0 | BK55: 0 | BL55: 0 | BM55: 0 | BN55: 0 | BO55: 0 | BP55: 0 | BQ55: 0
D56: Capital Expenditures | I56: =I8 -> 1000 | J56: 0 | K56: 0 | L56: 0 | M56: 0 | N56: 0 | O56: 0 | P56: 0 | Q56: 0 | R56: 0 | S56: 0 | T56: 0 | U56: 0 | V56: 0 | W56: 0 | X56: 0 | Y56: 0 | Z56: 0 | AA56: 0 | AB56: 0 | AC56: 0 | AD56: 0 | AE56: 0 | AF56: 0 | AG56: 0 | AH56: 0 | AI56: 0 | AJ56: 0 | AK56: 0 | AL56: 0 | AM56: 0 | AN56: 0 | AO56: =AO8 -> 0 | AP56: 0 | AQ56: 0 | AR56: 0 | AS56: 0 | AT56: 0 | AU56: 0 | AV56: 0 | AW56: 0 | AX56: 0 | AY56: 0 | AZ56: 0 | BA56: 0 | BB56: 0 | BC56: 0 | BD56: 0 | BE56: 0 | BF56: 0 | BG56: 0 | BH56: 0 | BI56: 0 | BJ56: 0 | BK56: 0 | BL56: 0 | BM56: 0 | BN56: 0 | BO56: 0 | BP56: 0 | BQ56: 0
D57: Project Cash Flow | I57: =I55-I56 -> -1000 | J57: =J55-J56 -> 61.89402025 | K57: 61.89402025 | L57: 61.89402025 | M57: 61.89402025 | N57: 61.89402025 | O57: 61.89402025 | P57: 61.89402025 | Q57: 61.89402025 | R57: 61.89402025 | S57: 61.89402025 | T57: 61.89402025 | U57: 61.89402025 | V57: 61.89402025 | W57: 61.89402025 | X57: 61.89402025 | Y57: 61.89402025 | Z57: 61.89402025 | AA57: 61.89402025 | AB57: 61.89402025 | AC57: 61.89402025 | AD57: 61.89402025 | AE57: 61.89402025 | AF57: 61.89402025 | AG57: 61.89402025 | AH57: 61.89402025 | AI57: 61.89402025 | AJ57: 61.89402025 | AK57: 61.89402025 | AL57: 61.89402025 | AM57: 61.89402025 | AN57: 61.89402025 | AO57: 61.89402025 | AP57: 61.89402025 | AQ57: 61.89402025 | AR57: 61.89402025 | AS57: 0 | AT57: 0 | AU57: 0 | AV57: 0 | AW57: 0 | AX57: 0 | AY57: 0 | AZ57: 0 | BA57: 0 | BB57: 0 | BC57: 0 | BD57: 0 | BE57: 0 | BF57: 0 | BG57: 0 | BH57: 0 | BI57: 0 | BJ57: 0 | BK57: 0 | BL57: 0 | BM57: 0 | BN57: 0 | BO57: 0 | BP57: 0 | BQ57: 0
D58: Project IRR | E58: =IRR(I57:BQ57) -> 0.05106404767
D59: Fixed Project IRR | E59: =E58 -> 0.05106404767
D61: NPV of Capacity Charge | E61: =NPV(E59,I55:BQ55) -> 951.4168068
B63: Option 2: Use of Cash Reserve
C64: Include Up-Front Cash for DSCR | E64: =Forms!F10 -> FALSE
C65: Cash Reserve Required | G65: =SUM(I65:XFD65) -> 0 | I65: =I35*$E$64 -> 0 | J65: =J35*$E$64 -> 0 | K65: 0 | L65: 0 | M65: 0 | N65: 0 | O65: 0 | P65: 0 | Q65: 0 | R65: 0 | S65: 0 | T65: 0 | U65: 0 | V65: 0 | W65: 0 | X65: 0 | Y65: 0 | Z65: 0 | AA65: 0 | AB65: 0 | AC65: 0 | AD65: 0 | AE65: 0 | AF65: 0 | AG65: 0 | AH65: 0 | AI65: 0 | AJ65: 0 | AK65: 0 | AL65: 0 | AM65: 0 | AN65: 0 | AO65: 0 | AP65: 0 | AQ65: 0 | AR65: 0 | AS65: 0 | AT65: 0 | AU65: 0 | AV65: 0 | AW65: 0 | AX65: 0 | AY65: 0 | AZ65: 0 | BA65: 0 | BB65: 0 | BC65: 0 | BD65: 0 | BE65: 0 | BF65: 0 | BG65: 0 | BH65: 0 | BI65: 0 | BJ65: 0 | BK65: 0 | BL65: 0 | BM65: 0 | BN65: 0 | BO65: 0 | BP65: 0 | BQ65: 0
C67: Accumulated Cash
D68: Opening Balance | I68: =H71 -> 0 | J68: =I71 -> 0 | K68: 0 | L68: 0 | M68: 0 | N68: 0 | O68: 0 | P68: 0 | Q68: 0 | R68: 0 | S68: 0 | T68: 0 | U68: 0 | V68: 0 | W68: 0 | X68: 0 | Y68: 0 | Z68: 0 | AA68: 0 | AB68: 0 | AC68: 0 | AD68: 0 | AE68: 0 | AF68: 0 | AG68: 0 | AH68: 0 | AI68: 0 | AJ68: 0 | AK68: 0 | AL68: 0 | AM68: 0 | AN68: 0 | AO68: 0 | AP68: 0 | AQ68: 0 | AR68: 0 | AS68: 0 | AT68: 0 | AU68: 0 | AV68: 0 | AW68: 0 | AX68: 0 | AY68: 0 | AZ68: 0 | BA68: 0 | BB68: 0 | BC68: 0 | BD68: 0 | BE68: 0 | BF68: 0 | BG68: 0 | BH68: 0 | BI68: 0 | BJ68: 0 | BK68: 0 | BL68: 0 | BM68: 0 | BN68: 0 | BO68: 0 | BP68: 0 | BQ68: 0
D69: Add Initial Cash | E69: =G65 -> 0 | I69: =$E$69*I4 -> 0 | J69: 0 | K69: 0 | L69: 0 | M69: 0 | N69: 0 | O69: 0 | P69: 0 | Q69: 0 | R69: 0 | S69: 0 | T69: 0 | U69: 0 | V69: 0 | W69: 0 | X69: 0 | Y69: 0 | Z69: 0 | AA69: 0 | AB69: 0 | AC69: 0 | AD69: 0 | AE69: 0 | AF69: 0 | AG69: 0 | AH69: 0 | AI69: 0 | AJ69: 0 | AK69: 0 | AL69: 0 | AM69: 0 | AN69: 0 | AO69: =$E$69*AO4 -> 0 | AP69: 0 | AQ69: 0 | AR69: 0 | AS69: 0 | AT69: 0 | AU69: 0 | AV69: 0 | AW69: 0 | AX69: 0 | AY69: 0 | AZ69: 0 | BA69: 0 | BB69: 0 | BC69: 0 | BD69: 0 | BE69: 0 | BF69: 0 | BG69: 0 | BH69: 0 | BI69: 0 | BJ69: 0 | BK69: 0 | BL69: 0 | BM69: 0 | BN69: 0 | BO69: 0 | BP69: 0 | BQ69: 0
D70: Less: Cash Used | I70: =I65 -> 0 | J70: =J65 -> 0 | K70: 0 | L70: 0 | M70: 0 | N70: 0 | O70: 0 | P70: 0 | Q70: 0 | R70: 0 | S70: 0 | T70: 0 | U70: 0 | V70: 0 | W70: 0 | X70: 0 | Y70: 0 | Z70: 0 | AA70: 0 | AB70: 0 | AC70: 0 | AD70: 0 | AE70: 0 | AF70: 0 | AG70: 0 | AH70: 0 | AI70: 0 | AJ70: 0 | AK70: 0 | AL70: 0 | AM70: 0 | AN70: 0 | AO70: 0 | AP70: 0 | AQ70: 0 | AR70: 0 | AS70: 0 | AT70: 0 | AU70: 0 | AV70: 0 | AW70: 0 | AX70: 0 | AY70: 0 | AZ70: 0 | BA70: 0 | BB70: 0 | BC70: 0 | BD70: 0 | BE70: 0 | BF70: 0 | BG70: 0 | BH70: 0 | BI70: 0 | BJ70: 0 | BK70: 0 | BL70: 0 | BM70: 0 | BN70: 0 | BO70: 0 | BP70: 0 | BQ70: 0
D71: Closing Balance | I71: =I68+I69-I70 -> 0 | J71: =J68+J69-J70 -> 0 | K71: 0 | L71: 0 | M71: 0 | N71: 0 | O71: 0 | P71: 0 | Q71: 0 | R71: 0 | S71: 0 | T71: 0 | U71: 0 | V71: 0 | W71: 0 | X71: 0 | Y71: 0 | Z71: 0 | AA71: 0 | AB71: 0 | AC71: 0 | AD71: 0 | AE71: 0 | AF71: 0 | AG71: 0 | AH71: 0 | AI71: 0 | AJ71: 0 | AK71: 0 | AL71: 0 | AM71: 0 | AN71: 0 | AO71: 0 | AP71: 0 | AQ71: 0 | AR71: 0 | AS71: 0 | AT71: 0 | AU71: 0 | AV71: 0 | AW71: 0 | AX71: 0 | AY71: 0 | AZ71: 0 | BA71: 0 | BB71: 0 | BC71: 0 | BD71: 0 | BE71: 0 | BF71: 0 | BG71: 0 | BH71: 0 | BI71: 0 | BJ71: 0 | BK71: 0 | BL71: 0 | BM71: 0 | BN71: 0 | BO71: 0 | BP71: 0 | BQ71: 0
D72: Interest Income
C74: Financing of Initial Cash
D75: Equity Financing | E75: 1 | F75: =E69*$E$75 -> 0 | I75: =$F$75*I4 -> 0 | J75: 0 | K75: 0 | L75: 0 | M75: 0 | N75: 0 | O75: 0 | P75: 0 | Q75: 0 | R75: 0 | S75: 0 | T75: 0 | U75: 0 | V75: 0 | W75: 0 | X75: 0 | Y75: 0 | Z75: 0 | AA75: 0 | AB75: 0 | AC75: 0 | AD75: 0 | AE75: 0 | AF75: 0 | AG75: 0 | AH75: 0 | AI75: 0 | AJ75: 0 | AK75: 0 | AL75: 0 | AM75: 0 | AN75: 0 | AO75: =$F$75*AO4 -> 0 | AP75: 0 | AQ75: 0 | AR75: 0 | AS75: 0 | AT75: 0 | AU75: 0 | AV75: 0 | AW75: 0 | AX75: 0 | AY75: 0 | AZ75: 0 | BA75: 0 | BB75: 0 | BC75: 0 | BD75: 0 | BE75: 0 | BF75: 0 | BG75: 0 | BH75: 0 | BI75: 0 | BJ75: 0 | BK75: 0 | BL75: 0 | BM75: 0 | BN75: 0 | BO75: 0 | BP75: 0 | BQ75: 0
D76: Debt Financing | E76: =1-E75 -> 0 | F76: =G65*E76 -> 0 | I76: =I69-I75 -> 0 | J76: =J69-J75 -> 0 | K76: 0 | L76: 0 | M76: 0 | N76: 0 | O76: 0 | P76: 0 | Q76: 0 | R76: 0 | S76: 0 | T76: 0 | U76: 0 | V76: 0 | W76: 0 | X76: 0 | Y76: 0 | Z76: 0 | AA76: 0 | AB76: 0 | AC76: 0 | AD76: 0 | AE76: 0 | AF76: 0 | AG76: 0 | AH76: 0 | AI76: 0 | AJ76: 0 | AK76: 0 | AL76: 0 | AM76: 0 | AN76: 0 | AO76: 0 | AP76: 0 | AQ76: 0 | AR76: 0 | AS76: 0 | AT76: 0 | AU76: 0 | AV76: 0 | AW76: 0 | AX76: 0 | AY76: 0 | AZ76: 0 | BA76: 0 | BB76: 0 | BC76: 0 | BD76: 0 | BE76: 0 | BF76: 0 | BG76: 0 | BH76: 0 | BI76: 0 | BJ76: 0 | BK76: 0 | BL76: 0 | BM76: 0 | BN76: 0 | BO76: 0 | BP76: 0 | BQ76: 0
B78: Option 3: Use of Revolver
C79: Draws on Revolver | E79: =Forms!G10 -> FALSE | I79: =I35*$E$79 -> 0 | J79: 0 | K79: 0 | L79: 0 | M79: 0 | N79: 0 | O79: 0 | P79: 0 | Q79: 0 | R79: 0 | S79: 0 | T79: 0 | U79: 0 | V79: 0 | W79: 0 | X79: 0 | Y79: 0 | Z79: 0 | AA79: 0 | AB79: 0 | AC79: 0 | AD79: 0 | AE79: 0 | AF79: 0 | AG79: 0 | AH79: 0 | AI79: 0 | AJ79: 0 | AK79: 0 | AL79: 0 | AM79: 0 | AN79: 0 | AO79: =AO35*$E$79 -> 0 | AP79: 0 | AQ79: 0 | AR79: 0 | AS79: 0 | AT79: 0 | AU79: 0 | AV79: 0 | AW79: 0 | AX79: 0 | AY79: 0 | AZ79: 0 | BA79: 0 | BB79: 0 | BC79: 0 | BD79: 0 | BE79: 0 | BF79: 0 | BG79: 0 | BH79: 0 | BI79: 0 | BJ79: 0 | BK79: 0 | BL79: 0 | BM79: 0 | BN79: 0 | BO79: 0 | BP79: 0 | BQ79: 0
C80: Available for Repayment - Before Interest | I80: =I36 -> 0 | J80: 0 | K80: 0 | L80: 0 | M80: 0 | N80: 0 | O80: 0 | P80: 0 | Q80: 0 | R80: 0 | S80: 0 | T80: 0 | U80: 0 | V80: 0 | W80: 0 | X80: 0 | Y80: 0.6940202482 | Z80: 3.334020248 | AA80: 5.974020248 | AB80: 8.614020248 | AC80: 11.25402025 | AD80: 61.89402025 | AE80: 61.89402025 | AF80: 61.89402025 | AG80: 61.89402025 | AH80: 61.89402025 | AI80: 61.89402025 | AJ80: 61.89402025 | AK80: 61.89402025 | AL80: 61.89402025 | AM80: 61.89402025 | AN80: 61.89402025 | AO80: =AO36 -> 61.89402025 | AP80: 61.89402025 | AQ80: 61.89402025 | AR80: 61.89402025 | AS80: 0 | AT80: 0 | AU80: 0 | AV80: 0 | AW80: 0 | AX80: 0 | AY80: 0 | AZ80: 0 | BA80: 0 | BB80: 0 | BC80: 0 | BD80: 0 | BE80: 0 | BF80: 0 | BG80: 0 | BH80: 0 | BI80: 0 | BJ80: 0 | BK80: 0 | BL80: 0 | BM80: 0 | BN80: 0 | BO80: 0 | BP80: 0 | BQ80: 0
C81: Interest on Revolver
C82: Available for Repayment - After Revolver | I82: =I80-I81 -> 0 | J82: =J80-J81 -> 0 | K82: 0 | L82: 0 | M82: 0 | N82: 0 | O82: 0 | P82: 0 | Q82: 0 | R82: 0 | S82: 0 | T82: 0 | U82: 0 | V82: 0 | W82: 0 | X82: 0 | Y82: 0.6940202482 | Z82: 3.334020248 | AA82: 5.974020248 | AB82: 8.614020248 | AC82: 11.25402025 | AD82: 61.89402025 | AE82: 61.89402025 | AF82: 61.89402025 | AG82: 61.89402025 | AH82: 61.89402025 | AI82: 61.89402025 | AJ82: 61.89402025 | AK82: 61.89402025 | AL82: 61.89402025 | AM82: 61.89402025 | AN82: 61.89402025 | AO82: 61.89402025 | AP82: 61.89402025 | AQ82: 61.89402025 | AR82: 61.89402025 | AS82: 0 | AT82: 0 | AU82: 0 | AV82: 0 | AW82: 0 | AX82: 0 | AY82: 0 | AZ82: 0 | BA82: 0 | BB82: 0 | BC82: 0 | BD82: 0 | BE82: 0 | BF82: 0 | BG82: 0 | BH82: 0 | BI82: 0 | BJ82: 0 | BK82: 0 | BL82: 0 | BM82: 0 | BN82: 0 | BO82: 0 | BP82: 0 | BQ82: 0
C84: Revolver Balance
D85: Opening Balance | I85: =H88 -> 0 | J85: =I88 -> 0 | K85: 0 | L85: 0 | M85: 0 | N85: 0 | O85: 0 | P85: 0 | Q85: 0 | R85: 0 | S85: 0 | T85: 0 | U85: 0 | V85: 0 | W85: 0 | X85: 0 | Y85: 0 | Z85: 0 | AA85: 0 | AB85: 0 | AC85: 0 | AD85: 0 | AE85: 0 | AF85: 0 | AG85: 0 | AH85: 0 | AI85: 0 | AJ85: 0 | AK85: 0 | AL85: 0 | AM85: 0 | AN85: 0 | AO85: 0 | AP85: 0 | AQ85: 0 | AR85: 0 | AS85: 0 | AT85: 0 | AU85: 0 | AV85: 0 | AW85: 0 | AX85: 0 | AY85: 0 | AZ85: 0 | BA85: 0 | BB85: 0 | BC85: 0 | BD85: 0 | BE85: 0 | BF85: 0 | BG85: 0 | BH85: 0 | BI85: 0 | BJ85: 0 | BK85: 0 | BL85: 0 | BM85: 0 | BN85: 0 | BO85: 0 | BP85: 0 | BQ85: 0
D86: Add: Draws | I86: =I79 -> 0 | J86: =J79 -> 0 | K86: 0 | L86: 0 | M86: 0 | N86: 0 | O86: 0 | P86: 0 | Q86: 0 | R86: 0 | S86: 0 | T86: 0 | U86: 0 | V86: 0 | W86: 0 | X86: 0 | Y86: 0 | Z86: 0 | AA86: 0 | AB86: 0 | AC86: 0 | AD86: 0 | AE86: 0 | AF86: 0 | AG86: 0 | AH86: 0 | AI86: 0 | AJ86: 0 | AK86: 0 | AL86: 0 | AM86: 0 | AN86: 0 | AO86: 0 | AP86: 0 | AQ86: 0 | AR86: 0 | AS86: 0 | AT86: 0 | AU86: 0 | AV86: 0 | AW86: 0 | AX86: 0 | AY86: 0 | AZ86: 0 | BA86: 0 | BB86: 0 | BC86: 0 | BD86: 0 | BE86: 0 | BF86: 0 | BG86: 0 | BH86: 0 | BI86: 0 | BJ86: 0 | BK86: 0 | BL86: 0 | BM86: 0 | BN86: 0 | BO86: 0 | BP86: 0 | BQ86: 0
D87: Less: Repayments | I87: =MIN(I85,I82) -> 0 | J87: =MIN(J85,J82) -> 0 | K87: 0 | L87: 0 | M87: 0 | N87: 0 | O87: 0 | P87: 0 | Q87: 0 | R87: 0 | S87: 0 | T87: 0 | U87: 0 | V87: 0 | W87: 0 | X87: 0 | Y87: 0 | Z87: 0 | AA87: 0 | AB87: 0 | AC87: 0 | AD87: 0 | AE87: 0 | AF87: 0 | AG87: 0 | AH87: 0 | AI87: 0 | AJ87: 0 | AK87: 0 | AL87: 0 | AM87: 0 | AN87: 0 | AO87: 0 | AP87: 0 | AQ87: 0 | AR87: 0 | AS87: 0 | AT87: 0 | AU87: 0 | AV87: 0 | AW87: 0 | AX87: 0 | AY87: 0 | AZ87: 0 | BA87: 0 | BB87: 0 | BC87: 0 | BD87: 0 | BE87: 0 | BF87: 0 | BG87: 0 | BH87: 0 | BI87: 0 | BJ87: 0 | BK87: 0 | BL87: 0 | BM87: 0 | BN87: 0 | BO87: 0 | BP87: 0 | BQ87: 0
D88: Closing Balance | I88: =I85+I86-I87 -> 0 | J88: =J85+J86-J87 -> 0 | K88: 0 | L88: 0 | M88: 0 | N88: 0 | O88: 0 | P88: 0 | Q88: 0 | R88: 0 | S88: 0 | T88: 0 | U88: 0 | V88: 0 | W88: 0 | X88: 0 | Y88: 0 | Z88: 0 | AA88: 0 | AB88: 0 | AC88: 0 | AD88: 0 | AE88: 0 | AF88: 0 | AG88: 0 | AH88: 0 | AI88: 0 | AJ88: 0 | AK88: 0 | AL88: 0 | AM88: 0 | AN88: 0 | AO88: 0 | AP88: 0 | AQ88: 0 | AR88: 0 | AS88: 0 | AT88: 0 | AU88: 0 | AV88: 0 | AW88: 0 | AX88: 0 | AY88: 0 | AZ88: 0 | BA88: 0 | BB88: 0 | BC88: 0 | BD88: 0 | BE88: 0 | BF88: 0 | BG88: 0 | BH88: 0 | BI88: 0 | BJ88: 0 | BK88: 0 | BL88: 0 | BM88: 0 | BN88: 0 | BO88: 0 | BP88: 0 | BQ88: 0
D89: Interest
B91: CFADS Balance
C92: Capacity Payment without Debt Service Adder | I92: =I39 -> 0 | J92: 61.89402025 | K92: 61.89402025 | L92: 61.89402025 | M92: 61.89402025 | N92: 61.89402025 | O92: 61.89402025 | P92: 61.89402025 | Q92: 61.89402025 | R92: 61.89402025 | S92: 61.89402025 | T92: 61.89402025 | U92: 61.89402025 | V92: 61.89402025 | W92: 61.89402025 | X92: 61.89402025 | Y92: 61.89402025 | Z92: 61.89402025 | AA92: 61.89402025 | AB92: 61.89402025 | AC92: 61.89402025 | AD92: 61.89402025 | AE92: 61.89402025 | AF92: 61.89402025 | AG92: 61.89402025 | AH92: 61.89402025 | AI92: 61.89402025 | AJ92: 61.89402025 | AK92: 61.89402025 | AL92: 61.89402025 | AM92: 61.89402025 | AN92: 61.89402025 | AO92: =AO39 -> 61.89402025 | AP92: 61.89402025 | AQ92: 61.89402025 | AR92: 61.89402025 | AS92: 0 | AT92: 0 | AU92: 0 | AV92: 0 | AW92: 0 | AX92: 0 | AY92: 0 | AZ92: 0 | BA92: 0 | BB92: 0 | BC92: 0 | BD92: 0 | BE92: 0 | BF92: 0 | BG92: 0 | BH92: 0 | BI92: 0 | BJ92: 0 | BK92: 0 | BL92: 0 | BM92: 0 | BN92: 0 | BO92: 0 | BP92: 0 | BQ92: 0
C93: Add: Debt Service Adder | I93: =I40 -> 0 | J93: 0 | K93: 0 | L93: 0 | M93: 0 | N93: 0 | O93: 0 | P93: 0 | Q93: 0 | R93: 0 | S93: 0 | T93: 0 | U93: 0 | V93: 0 | W93: 0 | X93: 0 | Y93: 0 | Z93: 0 | AA93: 0 | AB93: 0 | AC93: 0 | AD93: 0 | AE93: 0 | AF93: 0 | AG93: 0 | AH93: 0 | AI93: 0 | AJ93: 0 | AK93: 0 | AL93: 0 | AM93: 0 | AN93: 0 | AO93: =AO40 -> 0 | AP93: 0 | AQ93: 0 | AR93: 0 | AS93: 0 | AT93: 0 | AU93: 0 | AV93: 0 | AW93: 0 | AX93: 0 | AY93: 0 | AZ93: 0 | BA93: 0 | BB93: 0 | BC93: 0 | BD93: 0 | BE93: 0 | BF93: 0 | BG93: 0 | BH93: 0 | BI93: 0 | BJ93: 0 | BK93: 0 | BL93: 0 | BM93: 0 | BN93: 0 | BO93: 0 | BP93: 0 | BQ93: 0
C94: Add: Cash Used | I94: =I70 -> 0 | J94: 0 | K94: 0 | L94: 0 | M94: 0 | N94: 0 | O94: 0 | P94: 0 | Q94: 0 | R94: 0 | S94: 0 | T94: 0 | U94: 0 | V94: 0 | W94: 0 | X94: 0 | Y94: 0 | Z94: 0 | AA94: 0 | AB94: 0 | AC94: 0 | AD94: 0 | AE94: 0 | AF94: 0 | AG94: 0 | AH94: 0 | AI94: 0 | AJ94: 0 | AK94: 0 | AL94: 0 | AM94: 0 | AN94: 0 | AO94: =AO70 -> 0 | AP94: 0 | AQ94: 0 | AR94: 0 | AS94: 0 | AT94: 0 | AU94: 0 | AV94: 0 | AW94: 0 | AX94: 0 | AY94: 0 | AZ94: 0 | BA94: 0 | BB94: 0 | BC94: 0 | BD94: 0 | BE94: 0 | BF94: 0 | BG94: 0 | BH94: 0 | BI94: 0 | BJ94: 0 | BK94: 0 | BL94: 0 | BM94: 0 | BN94: 0 | BO94: 0 | BP94: 0 | BQ94: 0
C95: Add: Interest Income | I95: =I72 -> 0 | J95: 0 | K95: 0 | L95: 0 | M95: 0 | N95: 0 | O95: 0 | P95: 0 | Q95: 0 | R95: 0 | S95: 0 | T95: 0 | U95: 0 | V95: 0 | W95: 0 | X95: 0 | Y95: 0 | Z95: 0 | AA95: 0 | AB95: 0 | AC95: 0 | AD95: 0 | AE95: 0 | AF95: 0 | AG95: 0 | AH95: 0 | AI95: 0 | AJ95: 0 | AK95: 0 | AL95: 0 | AM95: 0 | AN95: 0 | AO95: =AO72 -> 0 | AP95: 0 | AQ95: 0 | AR95: 0 | AS95: 0 | AT95: 0 | AU95: 0 | AV95: 0 | AW95: 0 | AX95: 0 | AY95: 0 | AZ95: 0 | BA95: 0 | BB95: 0 | BC95: 0 | BD95: 0 | BE95: 0 | BF95: 0 | BG95: 0 | BH95: 0 | BI95: 0 | BJ95: 0 | BK95: 0 | BL95: 0 | BM95: 0 | BN95: 0 | BO95: 0 | BP95: 0 | BQ95: 0
C96: Add: Revolver Draw | I96: =I86 -> 0 | J96: =J86 -> 0 | K96: 0 | L96: 0 | M96: 0 | N96: 0 | O96: 0 | P96: 0 | Q96: 0 | R96: 0 | S96: 0 | T96: 0 | U96: 0 | V96: 0 | W96: 0 | X96: 0 | Y96: 0 | Z96: 0 | AA96: 0 | AB96: 0 | AC96: 0 | AD96: 0 | AE96: 0 | AF96: 0 | AG96: 0 | AH96: 0 | AI96: 0 | AJ96: 0 | AK96: 0 | AL96: 0 | AM96: 0 | AN96: 0 | AO96: 0 | AP96: 0 | AQ96: 0 | AR96: 0 | AS96: 0 | AT96: 0 | AU96: 0 | AV96: 0 | AW96: 0 | AX96: 0 | AY96: 0 | AZ96: 0 | BA96: 0 | BB96: 0 | BC96: 0 | BD96: 0 | BE96: 0 | BF96: 0 | BG96: 0 | BH96: 0 | BI96: 0 | BJ96: 0 | BK96: 0 | BL96: 0 | BM96: 0 | BN96: 0 | BO96: 0 | BP96: 0 | BQ96: 0
C97: Less: Repayment of Revolver | I97: =-I87 -> 0 | J97: =-J87 -> 0 | K97: 0 | L97: 0 | M97: 0 | N97: 0 | O97: 0 | P97: 0 | Q97: 0 | R97: 0 | S97: 0 | T97: 0 | U97: 0 | V97: 0 | W97: 0 | X97: 0 | Y97: 0 | Z97: 0 | AA97: 0 | AB97: 0 | AC97: 0 | AD97: 0 | AE97: 0 | AF97: 0 | AG97: 0 | AH97: 0 | AI97: 0 | AJ97: 0 | AK97: 0 | AL97: 0 | AM97: 0 | AN97: 0 | AO97: 0 | AP97: 0 | AQ97: 0 | AR97: 0 | AS97: 0 | AT97: 0 | AU97: 0 | AV97: 0 | AW97: 0 | AX97: 0 | AY97: 0 | AZ97: 0 | BA97: 0 | BB97: 0 | BC97: 0 | BD97: 0 | BE97: 0 | BF97: 0 | BG97: 0 | BH97: 0 | BI97: 0 | BJ97: 0 | BK97: 0 | BL97: 0 | BM97: 0 | BN97: 0 | BO97: 0 | BP97: 0 | BQ97: 0
C98: Less: Interest on Revolver | I98: =I89 -> 0 | J98: =J89 -> 0 | K98: 0 | L98: 0 | M98: 0 | N98: 0 | O98: 0 | P98: 0 | Q98: 0 | R98: 0 | S98: 0 | T98: 0 | U98: 0 | V98: 0 | W98: 0 | X98: 0 | Y98: 0 | Z98: 0 | AA98: 0 | AB98: 0 | AC98: 0 | AD98: 0 | AE98: 0 | AF98: 0 | AG98: 0 | AH98: 0 | AI98: 0 | AJ98: 0 | AK98: 0 | AL98: 0 | AM98: 0 | AN98: 0 | AO98: 0 | AP98: 0 | AQ98: 0 | AR98: 0 | AS98: 0 | AT98: 0 | AU98: 0 | AV98: 0 | AW98: 0 | AX98: 0 | AY98: 0 | AZ98: 0 | BA98: 0 | BB98: 0 | BC98: 0 | BD98: 0 | BE98: 0 | BF98: 0 | BG98: 0 | BH98: 0 | BI98: 0 | BJ98: 0 | BK98: 0 | BL98: 0 | BM98: 0 | BN98: 0 | BO98: 0 | BP98: 0 | BQ98: 0
C99: Total CFADS | I99: =I92+I93+I94+I95+I96+I97-I98 -> 0 | J99: =J92+J93+J94+J95+J96+J97-J98 -> 61.89402025 | K99: 61.89402025 | L99: 61.89402025 | M99: 61.89402025 | N99: 61.89402025 | O99: 61.89402025 | P99: 61.89402025 | Q99: 61.89402025 | R99: 61.89402025 | S99: 61.89402025 | T99: 61.89402025 | U99: 61.89402025 | V99: 61.89402025 | W99: 61.89402025 | X99: 61.89402025 | Y99: 61.89402025 | Z99: 61.89402025 | AA99: 61.89402025 | AB99: 61.89402025 | AC99: 61.89402025 | AD99: 61.89402025 | AE99: 61.89402025 | AF99: 61.89402025 | AG99: 61.89402025 | AH99: 61.89402025 | AI99: 61.89402025 | AJ99: 61.89402025 | AK99: 61.89402025 | AL99: 61.89402025 | AM99: 61.89402025 | AN99: 61.89402025 | AO99: 61.89402025 | AP99: 61.89402025 | AQ99: 61.89402025 | AR99: 61.89402025 | AS99: 0 | AT99: 0 | AU99: 0 | AV99: 0 | AW99: 0 | AX99: 0 | AY99: 0 | AZ99: 0 | BA99: 0 | BB99: 0 | BC99: 0 | BD99: 0 | BE99: 0 | BF99: 0 | BG99: 0 | BH99: 0 | BI99: 0 | BJ99: 0 | BK99: 0 | BL99: 0 | BM99: 0 | BN99: 0 | BO99: 0 | BP99: 0 | BQ99: 0
B101: Equity Cash Flow
C102: CFADS | I102: =I99 -> 0 | J102: =J99 -> 61.89402025 | K102: 61.89402025 | L102: 61.89402025 | M102: 61.89402025 | N102: 61.89402025 | O102: 61.89402025 | P102: 61.89402025 | Q102: 61.89402025 | R102: 61.89402025 | S102: 61.89402025 | T102: 61.89402025 | U102: 61.89402025 | V102: 61.89402025 | W102: 61.89402025 | X102: 61.89402025 | Y102: 61.89402025 | Z102: 61.89402025 | AA102: 61.89402025 | AB102: 61.89402025 | AC102: 61.89402025 | AD102: 61.89402025 | AE102: 61.89402025 | AF102: 61.89402025 | AG102: 61.89402025 | AH102: 61.89402025 | AI102: 61.89402025 | AJ102: 61.89402025 | AK102: 61.89402025 | AL102: 61.89402025 | AM102: 61.89402025 | AN102: 61.89402025 | AO102: 61.89402025 | AP102: 61.89402025 | AQ102: 61.89402025 | AR102: 61.89402025 | AS102: 0 | AT102: 0 | AU102: 0 | AV102: 0 | AW102: 0 | AX102: 0 | AY102: 0 | AZ102: 0 | BA102: 0 | BB102: 0 | BC102: 0 | BD102: 0 | BE102: 0 | BF102: 0 | BG102: 0 | BH102: 0 | BI102: 0 | BJ102: 0 | BK102: 0 | BL102: 0 | BM102: 0 | BN102: 0 | BO102: 0 | BP102: 0 | BQ102: 0
C103: Less: Debt Service | I103: =I28 -> 0 | J103: 84 | K103: 81.8 | L103: 79.6 | M103: 77.4 | N103: 75.2 | O103: 73 | P103: 70.8 | Q103: 68.6 | R103: 66.4 | S103: 64.2 | T103: 62 | U103: 59.8 | V103: 57.6 | W103: 55.4 | X103: 53.2 | Y103: 51 | Z103: 48.8 | AA103: 46.6 | AB103: 44.4 | AC103: 42.2 | AD103: 0 | AE103: 0 | AF103: 0 | AG103: 0 | AH103: 0 | AI103: 0 | AJ103: 0 | AK103: 0 | AL103: 0 | AM103: 0 | AN103: 0 | AO103: =AO28 -> 0 | AP103: 0 | AQ103: 0 | AR103: 0 | AS103: 0 | AT103: 0 | AU103: 0 | AV103: 0 | AW103: 0 | AX103: 0 | AY103: 0 | AZ103: 0 | BA103: 0 | BB103: 0 | BC103: 0 | BD103: 0 | BE103: 0 | BF103: 0 | BG103: 0 | BH103: 0 | BI103: 0 | BJ103: 0 | BK103: 0 | BL103: 0 | BM103: 0 | BN103: 0 | BO103: 0 | BP103: 0 | BQ103: 0
C104: Total Equity after COD | I104: =I102-I103 -> 0 | J104: =J102-J103 -> -22.10597975 | K104: -19.90597975 | L104: -17.70597975 | M104: -15.50597975 | N104: -13.30597975 | O104: -11.10597975 | P104: -8.905979752 | Q104: -6.705979752 | R104: -4.505979752 | S104: -2.305979752 | T104: -0.1059797518 | U104: 2.094020248 | V104: 4.294020248 | W104: 6.494020248 | X104: 8.694020248 | Y104: 10.89402025 | Z104: 13.09402025 | AA104: 15.29402025 | AB104: 17.49402025 | AC104: 19.69402025 | AD104: 61.89402025 | AE104: 61.89402025 | AF104: 61.89402025 | AG104: 61.89402025 | AH104: 61.89402025 | AI104: 61.89402025 | AJ104: 61.89402025 | AK104: 61.89402025 | AL104: 61.89402025 | AM104: 61.89402025 | AN104: 61.89402025 | AO104: 61.89402025 | AP104: 61.89402025 | AQ104: 61.89402025 | AR104: 61.89402025 | AS104: 0 | AT104: 0 | AU104: 0 | AV104: 0 | AW104: 0 | AX104: 0 | AY104: 0 | AZ104: 0 | BA104: 0 | BB104: 0 | BC104: 0 | BD104: 0 | BE104: 0 | BF104: 0 | BG104: 0 | BH104: 0 | BI104: 0 | BJ104: 0 | BK104: 0 | BL104: 0 | BM104: 0 | BN104: 0 | BO104: 0 | BP104: 0 | BQ104: 0
C105: Less: Equity Investment | I105: =I47 -> -200 | J105: 0 | K105: 0 | L105: 0 | M105: 0 | N105: 0 | O105: 0 | P105: 0 | Q105: 0 | R105: 0 | S105: 0 | T105: 0 | U105: 0 | V105: 0 | W105: 0 | X105: 0 | Y105: 0 | Z105: 0 | AA105: 0 | AB105: 0 | AC105: 0 | AD105: 0 | AE105: 0 | AF105: 0 | AG105: 0 | AH105: 0 | AI105: 0 | AJ105: 0 | AK105: 0 | AL105: 0 | AM105: 0 | AN105: 0 | AO105: =AO47 -> 0 | AP105: 0 | AQ105: 0 | AR105: 0 | AS105: 0 | AT105: 0 | AU105: 0 | AV105: 0 | AW105: 0 | AX105: 0 | AY105: 0 | AZ105: 0 | BA105: 0 | BB105: 0 | BC105: 0 | BD105: 0 | BE105: 0 | BF105: 0 | BG105: 0 | BH105: 0 | BI105: 0 | BJ105: 0 | BK105: 0 | BL105: 0 | BM105: 0 | BN105: 0 | BO105: 0 | BP105: 0 | BQ105: 0
C106: Less: Equity Invested in Cash | I106: =-I75 -> 0 | J106: 0 | K106: 0 | L106: 0 | M106: 0 | N106: 0 | O106: 0 | P106: 0 | Q106: 0 | R106: 0 | S106: 0 | T106: 0 | U106: 0 | V106: 0 | W106: 0 | X106: 0 | Y106: 0 | Z106: 0 | AA106: 0 | AB106: 0 | AC106: 0 | AD106: 0 | AE106: 0 | AF106: 0 | AG106: 0 | AH106: 0 | AI106: 0 | AJ106: 0 | AK106: 0 | AL106: 0 | AM106: 0 | AN106: 0 | AO106: =-AO75 -> 0 | AP106: 0 | AQ106: 0 | AR106: 0 | AS106: 0 | AT106: 0 | AU106: 0 | AV106: 0 | AW106: 0 | AX106: 0 | AY106: 0 | AZ106: 0 | BA106: 0 | BB106: 0 | BC106: 0 | BD106: 0 | BE106: 0 | BF106: 0 | BG106: 0 | BH106: 0 | BI106: 0 | BJ106: 0 | BK106: 0 | BL106: 0 | BM106: 0 | BN106: 0 | BO106: 0 | BP106: 0 | BQ106: 0
C107: Equity Cash Flow | I107: =I104+I105+I106 -> -200 | J107: =J104+J105+J106 -> -22.10597975 | K107: -19.90597975 | L107: -17.70597975 | M107: -15.50597975 | N107: -13.30597975 | O107: -11.10597975 | P107: -8.905979752 | Q107: -6.705979752 | R107: -4.505979752 | S107: -2.305979752 | T107: -0.1059797518 | U107: 2.094020248 | V107: 4.294020248 | W107: 6.494020248 | X107: 8.694020248 | Y107: 10.89402025 | Z107: 13.09402025 | AA107: 15.29402025 | AB107: 17.49402025 | AC107: 19.69402025 | AD107: 61.89402025 | AE107: 61.89402025 | AF107: 61.89402025 | AG107: 61.89402025 | AH107: 61.89402025 | AI107: 61.89402025 | AJ107: 61.89402025 | AK107: 61.89402025 | AL107: 61.89402025 | AM107: 61.89402025 | AN107: 61.89402025 | AO107: 61.89402025 | AP107: 61.89402025 | AQ107: 61.89402025 | AR107: 61.89402025 | AS107: 0 | AT107: 0 | AU107: 0 | AV107: 0 | AW107: 0 | AX107: 0 | AY107: 0 | AZ107: 0 | BA107: 0 | BB107: 0 | BC107: 0 | BD107: 0 | BE107: 0 | BF107: 0 | BG107: 0 | BH107: 0 | BI107: 0 | BJ107: 0 | BK107: 0 | BL107: 0 | BM107: 0 | BN107: 0 | BO107: 0 | BP107: 0 | BQ107: 0
C108: Equity IRR | E108: =IRR(I107:BQ107) -> 0.04754810458 | I108: =I49 -> -200 | J108: =J49 -> -22.10597975 | K108: -19.90597975 | L108: -17.70597975 | M108: -15.50597975 | N108: -13.30597975 | O108: -11.10597975 | P108: -8.905979752 | Q108: -6.705979752 | R108: -4.505979752 | S108: -2.305979752 | T108: -0.1059797518 | U108: 2.094020248 | V108: 4.294020248 | W108: 6.494020248 | X108: 8.694020248 | Y108: 10.89402025 | Z108: 13.09402025 | AA108: 15.29402025 | AB108: 17.49402025 | AC108: 19.69402025 | AD108: 61.89402025 | AE108: 61.89402025 | AF108: 61.89402025 | AG108: 61.89402025 | AH108: 61.89402025 | AI108: 61.89402025 | AJ108: 61.89402025 | AK108: 61.89402025 | AL108: 61.89402025 | AM108: 61.89402025 | AN108: 61.89402025 | AO108: 61.89402025 | AP108: 61.89402025 | AQ108: 61.89402025 | AR108: 61.89402025 | AS108: 0 | AT108: 0 | AU108: 0 | AV108: 0 | AW108: 0 | AX108: 0 | AY108: 0 | AZ108: 0 | BA108: 0 | BB108: 0 | BC108: 0 | BD108: 0 | BE108: 0 | BF108: 0 | BG108: 0 | BH108: 0 | BI108: 0 | BJ108: 0 | BK108: 0 | BL108: 0 | BM108: 0 | BN108: 0 | BO108: 0 | BP108: 0 | BQ108: 0
C110: NPV at Target IRR | E110: =E9 -> 0.08 | F110: =NPV(E110,I107:BQ107) -> -140.1655198 | G110: npv
C111: CCR from Goal Seek | E111: 61.89402025 | F111: ccr
C113: DSCR
D114: Total CFADS | I114: =I99 -> 0 | J114: =J99 -> 61.89402025 | K114: 61.89402025 | L114: 61.89402025 | M114: 61.89402025 | N114: 61.89402025 | O114: 61.89402025 | P114: 61.89402025 | Q114: 61.89402025 | R114: 61.89402025 | S114: 61.89402025 | T114: 61.89402025 | U114: 61.89402025 | V114: 61.89402025 | W114: 61.89402025 | X114: 61.89402025 | Y114: 61.89402025 | Z114: 61.89402025 | AA114: 61.89402025 | AB114: 61.89402025 | AC114: 61.89402025 | AD114: 61.89402025 | AE114: 61.89402025 | AF114: 61.89402025 | AG114: 61.89402025 | AH114: 61.89402025 | AI114: 61.89402025 | AJ114: 61.89402025 | AK114: 61.89402025 | AL114: 61.89402025 | AM114: 61.89402025 | AN114: 61.89402025 | AO114: 61.89402025 | AP114: 61.89402025 | AQ114: 61.89402025 | AR114: 61.89402025 | AS114: 0 | AT114: 0 | AU114: 0 | AV114: 0 | AW114: 0 | AX114: 0 | AY114: 0 | AZ114: 0 | BA114: 0 | BB114: 0 | BC114: 0 | BD114: 0 | BE114: 0 | BF114: 0 | BG114: 0 | BH114: 0 | BI114: 0 | BJ114: 0 | BK114: 0 | BL114: 0 | BM114: 0 | BN114: 0 | BO114: 0 | BP114: 0 | BQ114: 0
D115: Debt Service | I115: =I28 -> 0 | J115: 84 | K115: 81.8 | L115: 79.6 | M115: 77.4 | N115: 75.2 | O115: 73 | P115: 70.8 | Q115: 68.6 | R115: 66.4 | S115: 64.2 | T115: 62 | U115: 59.8 | V115: 57.6 | W115: 55.4 | X115: 53.2 | Y115: 51 | Z115: 48.8 | AA115: 46.6 | AB115: 44.4 | AC115: 42.2 | AD115: 0 | AE115: 0 | AF115: 0 | AG115: 0 | AH115: 0 | AI115: 0 | AJ115: 0 | AK115: 0 | AL115: 0 | AM115: 0 | AN115: 0 | AO115: =AO28 -> 0 | AP115: 0 | AQ115: 0 | AR115: 0 | AS115: 0 | AT115: 0 | AU115: 0 | AV115: 0 | AW115: 0 | AX115: 0 | AY115: 0 | AZ115: 0 | BA115: 0 | BB115: 0 | BC115: 0 | BD115: 0 | BE115: 0 | BF115: 0 | BG115: 0 | BH115: 0 | BI115: 0 | BJ115: 0 | BK115: 0 | BL115: 0 | BM115: 0 | BN115: 0 | BO115: 0 | BP115: 0 | BQ115: 0
D116: DSCR | I116: =IF(I14,I114/I115) -> FALSE | J116: 0.7368335744 | K116: 0.7566506143 | L116: 0.7775630684 | M116: 0.7996643443 | N116: 0.8230587799 | O116: 0.8478632911 | P116: 0.8742093255 | Q116: 0.9022451931 | R116: 0.9321388592 | S116: 0.9640813123 | T116: 0.9982906492 | U116: 1.035017061 | V116: 1.074548963 | W116: 1.117220582 | X116: 1.163421433 | Y116: 1.21360824 | Z116: 1.268320087 | AA116: 1.328197859 | AB116: 1.394009465 | AC116: 1.466682944 | AD116: FALSE | AE116: FALSE | AF116: FALSE | AG116: FALSE | AH116: FALSE | AI116: FALSE | AJ116: FALSE | AK116: FALSE | AL116: FALSE | AM116: FALSE | AN116: FALSE | AO116: =IF(AO14,AO114/AO115) -> FALSE | AP116: FALSE | AQ116: FALSE | AR116: FALSE | AS116: FALSE | AT116: FALSE | AU116: FALSE | AV116: FALSE | AW116: FALSE | AX116: FALSE | AY116: FALSE | AZ116: FALSE | BA116: FALSE | BB116: FALSE | BC116: FALSE | BD116: FALSE | BE116: FALSE | BF116: FALSE | BG116: FALSE | BH116: FALSE | BI116: FALSE | BJ116: FALSE | BK116: FALSE | BL116: FALSE | BM116: FALSE | BN116: FALSE | BO116: FALSE | BP116: FALSE | BQ116: FALSE
B119: Graphs
I120: =IF(I14,I3,NA()) ->  | J120: 1 | K120: 2 | L120: 3 | M120: 4 | N120: 5 | O120: 6 | P120: 7 | Q120: 8 | R120: 9 | S120: 10 | T120: 11 | U120: 12 | V120: 13 | W120: 14 | X120: 15 | Y120: 16 | Z120: 17 | AA120: 18 | AB120: 19 | AC120: 20 | AO120: =IF(AO14,AO3,NA()) -> 
B122: Chart 1 - CFADS and Debt Service | I122: =IF(I5,I3,NA()) ->  | J122: 1 | K122: 2 | L122: 3 | M122: 4 | N122: 5 | O122: 6 | P122: 7 | Q122: 8 | R122: 9 | S122: 10 | T122: 11 | U122: 12 | V122: 13 | W122: 14 | X122: 15 | Y122: 16 | Z122: 17 | AA122: 18 | AB122: 19 | AC122: 20 | AD122: 21 | AE122: 22 | AF122: 23 | AG122: 24 | AH122: 25 | AI122: 26 | AJ122: 27 | AK122: 28 | AL122: 29 | AM122: 30 | AN122: 31 | AO122: =IF(AO5,AO3,NA()) -> 32 | AP122: 33 | AQ122: 34 | AR122: 35
C123: CFADS | I123: =I99 -> 0 | J123: =J99 -> 61.89402025 | K123: 61.89402025 | L123: 61.89402025 | M123: 61.89402025 | N123: 61.89402025 | O123: 61.89402025 | P123: 61.89402025 | Q123: 61.89402025 | R123: 61.89402025 | S123: 61.89402025 | T123: 61.89402025 | U123: 61.89402025 | V123: 61.89402025 | W123: 61.89402025 | X123: 61.89402025 | Y123: 61.89402025 | Z123: 61.89402025 | AA123: 61.89402025 | AB123: 61.89402025 | AC123: 61.89402025 | AD123: 61.89402025 | AE123: 61.89402025 | AF123: 61.89402025 | AG123: 61.89402025 | AH123: 61.89402025 | AI123: 61.89402025 | AJ123: 61.89402025 | AK123: 61.89402025 | AL123: 61.89402025 | AM123: 61.89402025 | AN123: 61.89402025 | AO123: 61.89402025 | AP123: 61.89402025 | AQ123: 61.89402025 | AR123: 61.89402025 | AS123: 0 | AT123: 0 | AU123: 0 | AV123: 0 | AW123: 0 | AX123: 0 | AY123: 0 | AZ123: 0 | BA123: 0 | BB123: 0 | BC123: 0 | BD123: 0 | BE123: 0 | BF123: 0 | BG123: 0 | BH123: 0 | BI123: 0 | BJ123: 0 | BK123: 0 | BL123: 0 | BM123: 0 | BN123: 0 | BO123: 0 | BP123: 0 | BQ123: 0
C124: Debt Service | I124: =I115 -> 0 | J124: =J115 -> 84 | K124: 81.8 | L124: 79.6 | M124: 77.4 | N124: 75.2 | O124: 73 | P124: 70.8 | Q124: 68.6 | R124: 66.4 | S124: 64.2 | T124: 62 | U124: 59.8 | V124: 57.6 | W124: 55.4 | X124: 53.2 | Y124: 51 | Z124: 48.8 | AA124: 46.6 | AB124: 44.4 | AC124: 42.2 | AD124: 0 | AE124: 0 | AF124: 0 | AG124: 0 | AH124: 0 | AI124: 0 | AJ124: 0 | AK124: 0 | AL124: 0 | AM124: 0 | AN124: 0 | AO124: 0 | AP124: 0 | AQ124: 0 | AR124: 0 | AS124: 0 | AT124: 0 | AU124: 0 | AV124: 0 | AW124: 0 | AX124: 0 | AY124: 0 | AZ124: 0 | BA124: 0 | BB124: 0 | BC124: 0 | BD124: 0 | BE124: 0 | BF124: 0 | BG124: 0 | BH124: 0 | BI124: 0 | BJ124: 0 | BK124: 0 | BL124: 0 | BM124: 0 | BN124: 0 | BO124: 0 | BP124: 0 | BQ124: 0
C126: =J1 -> CCR Computed | E126: =L1 -> 61.89402025 | G126: =N1 -> PV of CCCR | H126: =O1 -> 951.4168068 | J126: =Q1 -> Equity IRR | K126: =E108 -> 0.04754810458
B128: Chart 2 - Deficit and Surplus Cash Flow to Meet DSCR | I128: =I122 ->  | J128: =J122 -> 1 | K128: 2 | L128: 3 | M128: 4 | N128: 5 | O128: 6 | P128: 7 | Q128: 8 | R128: 9 | S128: 10 | T128: 11 | U128: 12 | V128: 13 | W128: 14 | X128: 15 | Y128: 16 | Z128: 17 | AA128: 18 | AB128: 19 | AC128: 20 | AD128: 21 | AE128: 22 | AF128: 23 | AG128: 24 | AH128: 25 | AI128: 26 | AJ128: 27 | AK128: 28 | AL128: 29 | AM128: 30 | AN128: 31 | AO128: 32 | AP128: 33 | AQ128: 34 | AR128: 35
C129: Cash Flow Modelled | I129: =I41 -> 0 | J129: 61.89402025 | K129: 61.89402025 | L129: 61.89402025 | M129: 61.89402025 | N129: 61.89402025 | O129: 61.89402025 | P129: 61.89402025 | Q129: 61.89402025 | R129: 61.89402025 | S129: 61.89402025 | T129: 61.89402025 | U129: 61.89402025 | V129: 61.89402025 | W129: 61.89402025 | X129: 61.89402025 | Y129: 61.89402025 | Z129: 61.89402025 | AA129: 61.89402025 | AB129: 61.89402025 | AC129: 61.89402025 | AD129: 61.89402025 | AE129: 61.89402025 | AF129: 61.89402025 | AG129: 61.89402025 | AH129: 61.89402025 | AI129: 61.89402025 | AJ129: 61.89402025 | AK129: 61.89402025 | AL129: 61.89402025 | AM129: 61.89402025 | AN129: 61.89402025 | AO129: =AO41 -> 61.89402025 | AP129: 61.89402025 | AQ129: 61.89402025 | AR129: 61.89402025 | AS129: 0 | AT129: 0 | AU129: 0 | AV129: 0 | AW129: 0 | AX129: 0 | AY129: 0 | AZ129: 0 | BA129: 0 | BB129: 0 | BC129: 0 | BD129: 0 | BE129: 0 | BF129: 0 | BG129: 0 | BH129: 0 | BI129: 0 | BJ129: 0 | BK129: 0 | BL129: 0 | BM129: 0 | BN129: 0 | BO129: 0 | BP129: 0 | BQ129: 0
C130: Required Cash Flow - DSCR x Debt Service | I130: =I33 -> 0 | J130: 100.8 | K130: 98.16 | L130: 95.52 | M130: 92.88 | N130: 90.24 | O130: 87.6 | P130: 84.96 | Q130: 82.32 | R130: 79.68 | S130: 77.04 | T130: 74.4 | U130: 71.76 | V130: 69.12 | W130: 66.48 | X130: 63.84 | Y130: 61.2 | Z130: 58.56 | AA130: 55.92 | AB130: 53.28 | AC130: 50.64 | AD130: 0 | AE130: 0 | AF130: 0 | AG130: 0 | AH130: 0 | AI130: 0 | AJ130: 0 | AK130: 0 | AL130: 0 | AM130: 0 | AN130: 0 | AO130: =AO33 -> 0 | AP130: 0 | AQ130: 0 | AR130: 0 | AS130: 0 | AT130: 0 | AU130: 0 | AV130: 0 | AW130: 0 | AX130: 0 | AY130: 0 | AZ130: 0 | BA130: 0 | BB130: 0 | BC130: 0 | BD130: 0 | BE130: 0 | BF130: 0 | BG130: 0 | BH130: 0 | BI130: 0 | BJ130: 0 | BK130: 0 | BL130: 0 | BM130: 0 | BN130: 0 | BO130: 0 | BP130: 0 | BQ130: 0
C131: Deficit Cash Flow | I131: =I35 -> 0 | J131: 38.90597975 | K131: 36.26597975 | L131: 33.62597975 | M131: 30.98597975 | N131: 28.34597975 | O131: 25.70597975 | P131: 23.06597975 | Q131: 20.42597975 | R131: 17.78597975 | S131: 15.14597975 | T131: 12.50597975 | U131: 9.865979752 | V131: 7.225979752 | W131: 4.585979752 | X131: 1.945979752 | Y131: 0 | Z131: 0 | AA131: 0 | AB131: 0 | AC131: 0 | AD131: 0 | AE131: 0 | AF131: 0 | AG131: 0 | AH131: 0 | AI131: 0 | AJ131: 0 | AK131: 0 | AL131: 0 | AM131: 0 | AN131: 0 | AO131: =AO35 -> 0 | AP131: 0 | AQ131: 0 | AR131: 0 | AS131: 0 | AT131: 0 | AU131: 0 | AV131: 0 | AW131: 0 | AX131: 0 | AY131: 0 | AZ131: 0 | BA131: 0 | BB131: 0 | BC131: 0 | BD131: 0 | BE131: 0 | BF131: 0 | BG131: 0 | BH131: 0 | BI131: 0 | BJ131: 0 | BK131: 0 | BL131: 0 | BM131: 0 | BN131: 0 | BO131: 0 | BP131: 0 | BQ131: 0
C132: Surplus Cash Flow | I132: =I36 -> 0 | J132: 0 | K132: 0 | L132: 0 | M132: 0 | N132: 0 | O132: 0 | P132: 0 | Q132: 0 | R132: 0 | S132: 0 | T132: 0 | U132: 0 | V132: 0 | W132: 0 | X132: 0 | Y132: 0.6940202482 | Z132: 3.334020248 | AA132: 5.974020248 | AB132: 8.614020248 | AC132: 11.25402025 | AD132: 61.89402025 | AE132: 61.89402025 | AF132: 61.89402025 | AG132: 61.89402025 | AH132: 61.89402025 | AI132: 61.89402025 | AJ132: 61.89402025 | AK132: 61.89402025 | AL132: 61.89402025 | AM132: 61.89402025 | AN132: 61.89402025 | AO132: =AO36 -> 61.89402025 | AP132: 61.89402025 | AQ132: 61.89402025 | AR132: 61.89402025 | AS132: 0 | AT132: 0 | AU132: 0 | AV132: 0 | AW132: 0 | AX132: 0 | AY132: 0 | AZ132: 0 | BA132: 0 | BB132: 0 | BC132: 0 | BD132: 0 | BE132: 0 | BF132: 0 | BG132: 0 | BH132: 0 | BI132: 0 | BJ132: 0 | BK132: 0 | BL132: 0 | BM132: 0 | BN132: 0 | BO132: 0 | BP132: 0 | BQ132: 0
C134: Minimum DSCR | E134: =E12 -> 1.2
B136: Chart 3 - Capacity Components | I136: =I128 ->  | J136: =J128 -> 1 | K136: 2 | L136: 3 | M136: 4 | N136: 5 | O136: 6 | P136: 7 | Q136: 8 | R136: 9 | S136: 10 | T136: 11 | U136: 12 | V136: 13 | W136: 14 | X136: 15 | Y136: 16 | Z136: 17 | AA136: 18 | AB136: 19 | AC136: 20 | AD136: 21 | AE136: 22 | AF136: 23 | AG136: 24 | AH136: 25 | AI136: 26 | AJ136: 27 | AK136: 28 | AL136: 29 | AM136: 30 | AN136: 31 | AO136: 32 | AP136: 33 | AQ136: 34 | AR136: 35
C137: Base Capacity Charge | I137: =I39 -> 0 | J137: =J39 -> 61.89402025 | K137: 61.89402025 | L137: 61.89402025 | M137: 61.89402025 | N137: 61.89402025 | O137: 61.89402025 | P137: 61.89402025 | Q137: 61.89402025 | R137: 61.89402025 | S137: 61.89402025 | T137: 61.89402025 | U137: 61.89402025 | V137: 61.89402025 | W137: 61.89402025 | X137: 61.89402025 | Y137: 61.89402025 | Z137: 61.89402025 | AA137: 61.89402025 | AB137: 61.89402025 | AC137: 61.89402025 | AD137: 61.89402025 | AE137: 61.89402025 | AF137: 61.89402025 | AG137: 61.89402025 | AH137: 61.89402025 | AI137: 61.89402025 | AJ137: 61.89402025 | AK137: 61.89402025 | AL137: 61.89402025 | AM137: 61.89402025 | AN137: 61.89402025 | AO137: 61.89402025 | AP137: 61.89402025 | AQ137: 61.89402025 | AR137: 61.89402025 | AS137: 0 | AT137: 0 | AU137: 0 | AV137: 0 | AW137: 0 | AX137: 0 | AY137: 0 | AZ137: 0 | BA137: 0 | BB137: 0 | BC137: 0 | BD137: 0 | BE137: 0 | BF137: 0 | BG137: 0 | BH137: 0 | BI137: 0 | BJ137: 0 | BK137: 0 | BL137: 0 | BM137: 0 | BN137: 0 | BO137: 0 | BP137: 0 | BQ137: 0
C138: Capacity Adder | I138: =I40 -> 0 | J138: =J40 -> 0 | K138: 0 | L138: 0 | M138: 0 | N138: 0 | O138: 0 | P138: 0 | Q138: 0 | R138: 0 | S138: 0 | T138: 0 | U138: 0 | V138: 0 | W138: 0 | X138: 0 | Y138: 0 | Z138: 0 | AA138: 0 | AB138: 0 | AC138: 0 | AD138: 0 | AE138: 0 | AF138: 0 | AG138: 0 | AH138: 0 | AI138: 0 | AJ138: 0 | AK138: 0 | AL138: 0 | AM138: 0 | AN138: 0 | AO138: 0 | AP138: 0 | AQ138: 0 | AR138: 0 | AS138: 0 | AT138: 0 | AU138: 0 | AV138: 0 | AW138: 0 | AX138: 0 | AY138: 0 | AZ138: 0 | BA138: 0 | BB138: 0 | BC138: 0 | BD138: 0 | BE138: 0 | BF138: 0 | BG138: 0 | BH138: 0 | BI138: 0 | BJ138: 0 | BK138: 0 | BL138: 0 | BM138: 0 | BN138: 0 | BO138: 0 | BP138: 0 | BQ138: 0
C140: Capacity Charge Components | E140: Base CCR | F140: =L1 -> 61.89402025 | G140: PV of Capacity Payment | J140: at | K140: =E59 -> 0.05106404767 | L140: ==> | M140: =E61 -> 951.4168068
B142: Chart 4 - Cash and Revolver | I142: =I136 ->  | J142: =J136 -> 1 | K142: 2 | L142: 3 | M142: 4 | N142: 5 | O142: 6 | P142: 7 | Q142: 8 | R142: 9 | S142: 10 | T142: 11 | U142: 12 | V142: 13 | W142: 14 | X142: 15 | Y142: 16 | Z142: 17 | AA142: 18 | AB142: 19 | AC142: 20 | AD142: 21 | AE142: 22 | AF142: 23 | AG142: 24 | AH142: 25 | AI142: 26 | AJ142: 27 | AK142: 28 | AL142: 29 | AM142: 30 | AN142: 31 | AO142: 32 | AP142: 33 | AQ142: 34 | AR142: 35
C143: Cash Balance | I143: =I71 -> 0 | J143: =J71 -> 0 | K143: 0 | L143: 0 | M143: 0 | N143: 0 | O143: 0 | P143: 0 | Q143: 0 | R143: 0 | S143: 0 | T143: 0 | U143: 0 | V143: 0 | W143: 0 | X143: 0 | Y143: 0 | Z143: 0 | AA143: 0 | AB143: 0 | AC143: 0 | AD143: 0 | AE143: 0 | AF143: 0 | AG143: 0 | AH143: 0 | AI143: 0 | AJ143: 0 | AK143: 0 | AL143: 0 | AM143: 0 | AN143: 0 | AO143: 0 | AP143: 0 | AQ143: 0 | AR143: 0 | AS143: 0 | AT143: 0 | AU143: 0 | AV143: 0 | AW143: 0 | AX143: 0 | AY143: 0 | AZ143: 0 | BA143: 0 | BB143: 0 | BC143: 0 | BD143: 0 | BE143: 0 | BF143: 0 | BG143: 0 | BH143: 0 | BI143: 0 | BJ143: 0 | BK143: 0 | BL143: 0 | BM143: 0 | BN143: 0 | BO143: 0 | BP143: 0 | BQ143: 0
C144: Revolver Balance | I144: =I88 -> 0 | J144: =J88 -> 0 | K144: 0 | L144: 0 | M144: 0 | N144: 0 | O144: 0 | P144: 0 | Q144: 0 | R144: 0 | S144: 0 | T144: 0 | U144: 0 | V144: 0 | W144: 0 | X144: 0 | Y144: 0 | Z144: 0 | AA144: 0 | AB144: 0 | AC144: 0 | AD144: 0 | AE144: 0 | AF144: 0 | AG144: 0 | AH144: 0 | AI144: 0 | AJ144: 0 | AK144: 0 | AL144: 0 | AM144: 0 | AN144: 0 | AO144: 0 | AP144: 0 | AQ144: 0 | AR144: 0 | AS144: 0 | AT144: 0 | AU144: 0 | AV144: 0 | AW144: 0 | AX144: 0 | AY144: 0 | AZ144: 0 | BA144: 0 | BB144: 0 | BC144: 0 | BD144: 0 | BE144: 0 | BF144: 0 | BG144: 0 | BH144: 0 | BI144: 0 | BJ144: 0 | BK144: 0 | BL144: 0 | BM144: 0 | BN144: 0 | BO144: 0 | BP144: 0 | BQ144: 0
C146: Equity IRR | E146: =$E$108 -> 0.04754810458 | G146: Capacity Charge | I146: =$L$1 -> 61.89402025
B148: Chart 5 - CFADS Components | I148: =I142 ->  | J148: =J142 -> 1 | K148: 2 | L148: 3 | M148: 4 | N148: 5 | O148: 6 | P148: 7 | Q148: 8 | R148: 9 | S148: 10 | T148: 11 | U148: 12 | V148: 13 | W148: 14 | X148: 15 | Y148: 16 | Z148: 17 | AA148: 18 | AB148: 19 | AC148: 20 | AD148: 21 | AE148: 22 | AF148: 23 | AG148: 24 | AH148: 25 | AI148: 26 | AJ148: 27 | AK148: 28 | AL148: 29 | AM148: 30 | AN148: 31 | AO148: 32 | AP148: 33 | AQ148: 34 | AR148: 35
C149: Capacity Payment without Debt Service Adder | I149: =I92 -> 0 | J149: 61.89402025 | K149: 61.89402025 | L149: 61.89402025 | M149: 61.89402025 | N149: 61.89402025 | O149: 61.89402025 | P149: 61.89402025 | Q149: 61.89402025 | R149: 61.89402025 | S149: 61.89402025 | T149: 61.89402025 | U149: 61.89402025 | V149: 61.89402025 | W149: 61.89402025 | X149: 61.89402025 | Y149: 61.89402025 | Z149: 61.89402025 | AA149: 61.89402025 | AB149: 61.89402025 | AC149: 61.89402025 | AD149: 61.89402025 | AE149: 61.89402025 | AF149: 61.89402025 | AG149: 61.89402025 | AH149: 61.89402025 | AI149: 61.89402025 | AJ149: 61.89402025 | AK149: 61.89402025 | AL149: 61.89402025 | AM149: 61.89402025 | AN149: 61.89402025 | AO149: =AO92 -> 61.89402025 | AP149: 61.89402025 | AQ149: 61.89402025 | AR149: 61.89402025 | AS149: 0 | AT149: 0 | AU149: 0 | AV149: 0 | AW149: 0 | AX149: 0 | AY149: 0 | AZ149: 0 | BA149: 0 | BB149: 0 | BC149: 0 | BD149: 0 | BE149: 0 | BF149: 0 | BG149: 0 | BH149: 0 | BI149: 0 | BJ149: 0 | BK149: 0 | BL149: 0 | BM149: 0 | BN149: 0 | BO149: 0 | BP149: 0 | BQ149: 0
C150: Add: Debt Service Adder | I150: =I93 -> 0 | J150: 0 | K150: 0 | L150: 0 | M150: 0 | N150: 0 | O150: 0 | P150: 0 | Q150: 0 | R150: 0 | S150: 0 | T150: 0 | U150: 0 | V150: 0 | W150: 0 | X150: 0 | Y150: 0 | Z150: 0 | AA150: 0 | AB150: 0 | AC150: 0 | AD150: 0 | AE150: 0 | AF150: 0 | AG150: 0 | AH150: 0 | AI150: 0 | AJ150: 0 | AK150: 0 | AL150: 0 | AM150: 0 | AN150: 0 | AO150: =AO93 -> 0 | AP150: 0 | AQ150: 0 | AR150: 0 | AS150: 0 | AT150: 0 | AU150: 0 | AV150: 0 | AW150: 0 | AX150: 0 | AY150: 0 | AZ150: 0 | BA150: 0 | BB150: 0 | BC150: 0 | BD150: 0 | BE150: 0 | BF150: 0 | BG150: 0 | BH150: 0 | BI150: 0 | BJ150: 0 | BK150: 0 | BL150: 0 | BM150: 0 | BN150: 0 | BO150: 0 | BP150: 0 | BQ150: 0
C151: Add: Cash Used | I151: =I94 -> 0 | J151: 0 | K151: 0 | L151: 0 | M151: 0 | N151: 0 | O151: 0 | P151: 0 | Q151: 0 | R151: 0 | S151: 0 | T151: 0 | U151: 0 | V151: 0 | W151: 0 | X151: 0 | Y151: 0 | Z151: 0 | AA151: 0 | AB151: 0 | AC151: 0 | AD151: 0 | AE151: 0 | AF151: 0 | AG151: 0 | AH151: 0 | AI151: 0 | AJ151: 0 | AK151: 0 | AL151: 0 | AM151: 0 | AN151: 0 | AO151: =AO94 -> 0 | AP151: 0 | AQ151: 0 | AR151: 0 | AS151: 0 | AT151: 0 | AU151: 0 | AV151: 0 | AW151: 0 | AX151: 0 | AY151: 0 | AZ151: 0 | BA151: 0 | BB151: 0 | BC151: 0 | BD151: 0 | BE151: 0 | BF151: 0 | BG151: 0 | BH151: 0 | BI151: 0 | BJ151: 0 | BK151: 0 | BL151: 0 | BM151: 0 | BN151: 0 | BO151: 0 | BP151: 0 | BQ151: 0
C152: Add: Interest Income | I152: =I95 -> 0 | J152: 0 | K152: 0 | L152: 0 | M152: 0 | N152: 0 | O152: 0 | P152: 0 | Q152: 0 | R152: 0 | S152: 0 | T152: 0 | U152: 0 | V152: 0 | W152: 0 | X152: 0 | Y152: 0 | Z152: 0 | AA152: 0 | AB152: 0 | AC152: 0 | AD152: 0 | AE152: 0 | AF152: 0 | AG152: 0 | AH152: 0 | AI152: 0 | AJ152: 0 | AK152: 0 | AL152: 0 | AM152: 0 | AN152: 0 | AO152: =AO95 -> 0 | AP152: 0 | AQ152: 0 | AR152: 0 | AS152: 0 | AT152: 0 | AU152: 0 | AV152: 0 | AW152: 0 | AX152: 0 | AY152: 0 | AZ152: 0 | BA152: 0 | BB152: 0 | BC152: 0 | BD152: 0 | BE152: 0 | BF152: 0 | BG152: 0 | BH152: 0 | BI152: 0 | BJ152: 0 | BK152: 0 | BL152: 0 | BM152: 0 | BN152: 0 | BO152: 0 | BP152: 0 | BQ152: 0
C153: Add: Revolver Draw | I153: =I96 -> 0 | J153: 0 | K153: 0 | L153: 0 | M153: 0 | N153: 0 | O153: 0 | P153: 0 | Q153: 0 | R153: 0 | S153: 0 | T153: 0 | U153: 0 | V153: 0 | W153: 0 | X153: 0 | Y153: 0 | Z153: 0 | AA153: 0 | AB153: 0 | AC153: 0 | AD153: 0 | AE153: 0 | AF153: 0 | AG153: 0 | AH153: 0 | AI153: 0 | AJ153: 0 | AK153: 0 | AL153: 0 | AM153: 0 | AN153: 0 | AO153: =AO96 -> 0 | AP153: 0 | AQ153: 0 | AR153: 0 | AS153: 0 | AT153: 0 | AU153: 0 | AV153: 0 | AW153: 0 | AX153: 0 | AY153: 0 | AZ153: 0 | BA153: 0 | BB153: 0 | BC153: 0 | BD153: 0 | BE153: 0 | BF153: 0 | BG153: 0 | BH153: 0 | BI153: 0 | BJ153: 0 | BK153: 0 | BL153: 0 | BM153: 0 | BN153: 0 | BO153: 0 | BP153: 0 | BQ153: 0
C154: Less: Repayment of Revolver | I154: =I97 -> 0 | J154: 0 | K154: 0 | L154: 0 | M154: 0 | N154: 0 | O154: 0 | P154: 0 | Q154: 0 | R154: 0 | S154: 0 | T154: 0 | U154: 0 | V154: 0 | W154: 0 | X154: 0 | Y154: 0 | Z154: 0 | AA154: 0 | AB154: 0 | AC154: 0 | AD154: 0 | AE154: 0 | AF154: 0 | AG154: 0 | AH154: 0 | AI154: 0 | AJ154: 0 | AK154: 0 | AL154: 0 | AM154: 0 | AN154: 0 | AO154: 0 | AP154: 0 | AQ154: 0 | AR154: 0 | AS154: 0 | AT154: 0 | AU154: 0 | AV154: 0 | AW154: 0 | AX154: 0 | AY154: 0 | AZ154: 0 | BA154: 0 | BB154: 0 | BC154: =BC97 -> 0 | BD154: 0 | BE154: 0 | BF154: 0 | BG154: 0 | BH154: 0 | BI154: 0 | BJ154: 0 | BK154: 0 | BL154: 0 | BM154: 0 | BN154: 0 | BO154: 0 | BP154: 0 | BQ154: 0
C155: Less: Interest on Revolver | I155: =I98 -> 0 | J155: 0 | K155: 0 | L155: 0 | M155: 0 | N155: 0 | O155: 0 | P155: 0 | Q155: 0 | R155: 0 | S155: 0 | T155: 0 | U155: 0 | V155: 0 | W155: 0 | X155: 0 | Y155: 0 | Z155: 0 | AA155: 0 | AB155: 0 | AC155: 0 | AD155: 0 | AE155: 0 | AF155: 0 | AG155: 0 | AH155: 0 | AI155: 0 | AJ155: 0 | AK155: 0 | AL155: 0 | AM155: 0 | AN155: 0 | AO155: 0 | AP155: 0 | AQ155: 0 | AR155: 0 | AS155: 0 | AT155: 0 | AU155: 0 | AV155: 0 | AW155: 0 | AX155: 0 | AY155: 0 | AZ155: 0 | BA155: 0 | BB155: 0 | BC155: =BC98 -> 0 | BD155: 0 | BE155: 0 | BF155: 0 | BG155: 0 | BH155: 0 | BI155: 0 | BJ155: 0 | BK155: 0 | BL155: 0 | BM155: 0 | BN155: 0 | BO155: 0 | BP155: 0 | BQ155: 0
C156: Total CFADS | I156: =I99 -> 0 | J156: 61.89402025 | K156: 61.89402025 | L156: 61.89402025 | M156: 61.89402025 | N156: 61.89402025 | O156: 61.89402025 | P156: 61.89402025 | Q156: 61.89402025 | R156: 61.89402025 | S156: 61.89402025 | T156: 61.89402025 | U156: 61.89402025 | V156: 61.89402025 | W156: 61.89402025 | X156: 61.89402025 | Y156: 61.89402025 | Z156: 61.89402025 | AA156: 61.89402025 | AB156: 61.89402025 | AC156: 61.89402025 | AD156: 61.89402025 | AE156: 61.89402025 | AF156: 61.89402025 | AG156: 61.89402025 | AH156: 61.89402025 | AI156: 61.89402025 | AJ156: 61.89402025 | AK156: 61.89402025 | AL156: 61.89402025 | AM156: 61.89402025 | AN156: 61.89402025 | AO156: 61.89402025 | AP156: 61.89402025 | AQ156: 61.89402025 | AR156: 61.89402025 | AS156: 0 | AT156: 0 | AU156: 0 | AV156: 0 | AW156: 0 | AX156: 0 | AY156: 0 | AZ156: 0 | BA156: 0 | BB156: 0 | BC156: =BC99 -> 0 | BD156: 0 | BE156: 0 | BF156: 0 | BG156: 0 | BH156: 0 | BI156: 0 | BJ156: 0 | BK156: 0 | BL156: 0 | BM156: 0 | BN156: 0 | BO156: 0 | BP156: 0 | BQ156: 0
C158: CFADS Components | E158: Equity IRR | G158: =$E$108 -> 0.04754810458 | I158: Capacity Charge | K158: =$L$1 -> 61.89402025
B161: Chart 6 - Equity Cash Flow Components | I161: =IF(OR(I4,I5),I3,NA()) -> 0 | J161: =IF(OR(J4,J5),J3,NA()) -> 1 | K161: 2 | L161: 3 | M161: 4 | N161: 5 | O161: 6 | P161: 7 | Q161: 8 | R161: 9 | S161: 10 | T161: 11 | U161: 12 | V161: 13 | W161: 14 | X161: 15 | Y161: 16 | Z161: 17 | AA161: 18 | AB161: 19 | AC161: 20 | AD161: 21 | AE161: 22 | AF161: 23 | AG161: 24 | AH161: 25 | AI161: 26 | AJ161: 27 | AK161: 28 | AL161: 29 | AM161: 30 | AN161: 31 | AO161: 32 | AP161: 33 | AQ161: 34 | AR161: 35
C162: CFADS | I162: =I102 -> 0 | J162: =J102 -> 61.89402025 | K162: 61.89402025 | L162: 61.89402025 | M162: 61.89402025 | N162: 61.89402025 | O162: 61.89402025 | P162: 61.89402025 | Q162: 61.89402025 | R162: 61.89402025 | S162: 61.89402025 | T162: 61.89402025 | U162: 61.89402025 | V162: 61.89402025 | W162: 61.89402025 | X162: 61.89402025 | Y162: 61.89402025 | Z162: 61.89402025 | AA162: 61.89402025 | AB162: 61.89402025 | AC162: 61.89402025 | AD162: 61.89402025 | AE162: 61.89402025 | AF162: 61.89402025 | AG162: 61.89402025 | AH162: 61.89402025 | AI162: 61.89402025 | AJ162: 61.89402025 | AK162: 61.89402025 | AL162: 61.89402025 | AM162: 61.89402025 | AN162: 61.89402025 | AO162: 61.89402025 | AP162: 61.89402025 | AQ162: 61.89402025 | AR162: 61.89402025 | AS162: 0 | AT162: 0 | AU162: 0 | AV162: 0 | AW162: 0 | AX162: 0 | AY162: 0 | AZ162: 0 | BA162: 0 | BB162: 0 | BC162: 0 | BD162: 0 | BE162: 0 | BF162: 0 | BG162: 0 | BH162: 0 | BI162: 0 | BJ162: 0 | BK162: 0 | BL162: 0 | BM162: 0 | BN162: 0 | BO162: 0 | BP162: 0 | BQ162: 0
C163: Less: Debt Service | I163: =-I103 -> 0 | J163: =-J103 -> -84 | K163: -81.8 | L163: -79.6 | M163: -77.4 | N163: -75.2 | O163: -73 | P163: -70.8 | Q163: -68.6 | R163: -66.4 | S163: -64.2 | T163: -62 | U163: -59.8 | V163: -57.6 | W163: -55.4 | X163: -53.2 | Y163: -51 | Z163: -48.8 | AA163: -46.6 | AB163: -44.4 | AC163: -42.2 | AD163: 0 | AE163: 0 | AF163: 0 | AG163: 0 | AH163: 0 | AI163: 0 | AJ163: 0 | AK163: 0 | AL163: 0 | AM163: 0 | AN163: 0 | AO163: 0 | AP163: 0 | AQ163: 0 | AR163: 0 | AS163: 0 | AT163: 0 | AU163: 0 | AV163: 0 | AW163: 0 | AX163: 0 | AY163: 0 | AZ163: 0 | BA163: 0 | BB163: 0 | BC163: 0 | BD163: 0 | BE163: 0 | BF163: 0 | BG163: 0 | BH163: 0 | BI163: 0 | BJ163: 0 | BK163: 0 | BL163: 0 | BM163: 0 | BN163: 0 | BO163: 0 | BP163: 0 | BQ163: 0
C164: Total Equity after COD | I164: =I104 -> 0 | J164: -22.10597975 | K164: -19.90597975 | L164: -17.70597975 | M164: -15.50597975 | N164: -13.30597975 | O164: -11.10597975 | P164: -8.905979752 | Q164: -6.705979752 | R164: -4.505979752 | S164: -2.305979752 | T164: -0.1059797518 | U164: 2.094020248 | V164: 4.294020248 | W164: 6.494020248 | X164: 8.694020248 | Y164: 10.89402025 | Z164: 13.09402025 | AA164: 15.29402025 | AB164: 17.49402025 | AC164: 19.69402025 | AD164: 61.89402025 | AE164: 61.89402025 | AF164: 61.89402025 | AG164: 61.89402025 | AH164: 61.89402025 | AI164: 61.89402025 | AJ164: 61.89402025 | AK164: 61.89402025 | AL164: 61.89402025 | AM164: 61.89402025 | AN164: 61.89402025 | AO164: =AO104 -> 61.89402025 | AP164: 61.89402025 | AQ164: 61.89402025 | AR164: 61.89402025 | AS164: 0 | AT164: 0 | AU164: 0 | AV164: 0 | AW164: 0 | AX164: 0 | AY164: 0 | AZ164: 0 | BA164: 0 | BB164: 0 | BC164: 0 | BD164: 0 | BE164: 0 | BF164: 0 | BG164: 0 | BH164: 0 | BI164: 0 | BJ164: 0 | BK164: 0 | BL164: 0 | BM164: 0 | BN164: 0 | BO164: 0 | BP164: 0 | BQ164: 0
C165: Less: Equity Investment | I165: =I105 -> -200 | J165: 0 | K165: 0 | L165: 0 | M165: 0 | N165: 0 | O165: 0 | P165: 0 | Q165: 0 | R165: 0 | S165: 0 | T165: 0 | U165: 0 | V165: 0 | W165: 0 | X165: 0 | Y165: 0 | Z165: 0 | AA165: 0 | AB165: 0 | AC165: 0 | AD165: 0 | AE165: 0 | AF165: 0 | AG165: 0 | AH165: 0 | AI165: 0 | AJ165: 0 | AK165: 0 | AL165: 0 | AM165: 0 | AN165: 0 | AO165: =AO105 -> 0 | AP165: 0 | AQ165: 0 | AR165: 0 | AS165: 0 | AT165: 0 | AU165: 0 | AV165: 0 | AW165: 0 | AX165: 0 | AY165: 0 | AZ165: 0 | BA165: 0 | BB165: 0 | BC165: 0 | BD165: 0 | BE165: 0 | BF165: 0 | BG165: 0 | BH165: 0 | BI165: 0 | BJ165: 0 | BK165: 0 | BL165: 0 | BM165: 0 | BN165: 0 | BO165: 0 | BP165: 0 | BQ165: 0
C166: Less: Equity Invested in Cash | I166: =I106 -> 0 | J166: 0 | K166: 0 | L166: 0 | M166: 0 | N166: 0 | O166: 0 | P166: 0 | Q166: 0 | R166: 0 | S166: 0 | T166: 0 | U166: 0 | V166: 0 | W166: 0 | X166: 0 | Y166: 0 | Z166: 0 | AA166: 0 | AB166: 0 | AC166: 0 | AD166: 0 | AE166: 0 | AF166: 0 | AG166: 0 | AH166: 0 | AI166: 0 | AJ166: 0 | AK166: 0 | AL166: 0 | AM166: 0 | AN166: 0 | AO166: =AO106 -> 0 | AP166: 0 | AQ166: 0 | AR166: 0 | AS166: 0 | AT166: 0 | AU166: 0 | AV166: 0 | AW166: 0 | AX166: 0 | AY166: 0 | AZ166: 0 | BA166: 0 | BB166: 0 | BC166: 0 | BD166: 0 | BE166: 0 | BF166: 0 | BG166: 0 | BH166: 0 | BI166: 0 | BJ166: 0 | BK166: 0 | BL166: 0 | BM166: 0 | BN166: 0 | BO166: 0 | BP166: 0 | BQ166: 0
C167: Equity Cash Flow | I167: =I107 -> -200 | J167: -22.10597975 | K167: -19.90597975 | L167: -17.70597975 | M167: -15.50597975 | N167: -13.30597975 | O167: -11.10597975 | P167: -8.905979752 | Q167: -6.705979752 | R167: -4.505979752 | S167: -2.305979752 | T167: -0.1059797518 | U167: 2.094020248 | V167: 4.294020248 | W167: 6.494020248 | X167: 8.694020248 | Y167: 10.89402025 | Z167: 13.09402025 | AA167: 15.29402025 | AB167: 17.49402025 | AC167: 19.69402025 | AD167: 61.89402025 | AE167: 61.89402025 | AF167: 61.89402025 | AG167: 61.89402025 | AH167: 61.89402025 | AI167: 61.89402025 | AJ167: 61.89402025 | AK167: 61.89402025 | AL167: 61.89402025 | AM167: 61.89402025 | AN167: =AN107 -> 61.89402025 | AO167: 61.89402025 | AP167: 61.89402025 | AQ167: 61.89402025 | AR167: 61.89402025 | AS167: 0 | AT167: 0 | AU167: 0 | AV167: 0 | AW167: 0 | AX167: 0 | AY167: 0 | AZ167: 0 | BA167: 0 | BB167: 0 | BC167: 0 | BD167: 0 | BE167: 0 | BF167: 0 | BG167: 0 | BH167: 0 | BI167: 0 | BJ167: 0 | BK167: 0 | BL167: 0 | BM167: 0 | BN167: 0 | BO167: 0 | BP167: 0 | BQ167: 0
D169: Equity Cash Flow | F169: Equity IRR | H169: =E108 -> 0.04754810458
B171: Chart 7 - DSCR | I171: =IF(I14,I3,NA()) ->  | J171: =IF(J14,J3,NA()) -> 1 | K171: 2 | L171: 3 | M171: 4 | N171: 5 | O171: 6 | P171: 7 | Q171: 8 | R171: 9 | S171: 10 | T171: 11 | U171: 12 | V171: 13 | W171: 14 | X171: 15 | Y171: 16 | Z171: 17 | AA171: 18 | AB171: 19 | AC171: 20
C172: DSCR | I172: =I116 -> FALSE | J172: =J116 -> 0.7368335744 | K172: 0.7566506143 | L172: 0.7775630684 | M172: 0.7996643443 | N172: 0.8230587799 | O172: 0.8478632911 | P172: 0.8742093255 | Q172: 0.9022451931 | R172: 0.9321388592 | S172: 0.9640813123 | T172: 0.9982906492 | U172: 1.035017061 | V172: 1.074548963 | W172: 1.117220582 | X172: 1.163421433 | Y172: 1.21360824 | Z172: 1.268320087 | AA172: 1.328197859 | AB172: 1.394009465 | AC172: 1.466682944 | AD172: FALSE | AE172: FALSE | AF172: FALSE | AG172: FALSE | AH172: FALSE | AI172: FALSE | AJ172: FALSE | AK172: FALSE | AL172: FALSE | AM172: FALSE | AN172: FALSE | AO172: FALSE | AP172: FALSE | AQ172: FALSE | AR172: FALSE | AS172: FALSE | AT172: FALSE | AU172: FALSE | AV172: FALSE | AW172: FALSE | AX172: FALSE | AY172: FALSE | AZ172: FALSE | BA172: FALSE | BB172: FALSE | BC172: FALSE | BD172: FALSE | BE172: FALSE | BF172: FALSE | BG172: FALSE | BH172: FALSE | BI172: FALSE | BJ172: FALSE | BK172: FALSE | BL172: FALSE | BM172: FALSE | BN172: FALSE | BO172: FALSE | BP172: FALSE | BQ172: FALSE
C174: DSCR
J180: =J120 -> 1 | K180: =K120 -> 2 | L180: 3 | M180: 4 | N180: 5 | O180: 6 | P180: 7 | Q180: 8 | R180: 9 | S180: 10 | T180: 11 | U180: 12 | V180: 13 | W180: 14 | X180: 15 | Y180: 16 | Z180: 17 | AA180: 18 | AB180: 19 | AC180: 20
C182: Capacity Payment
